Workbook

Sheet Úvod
B2: Simulace raketového motoru
B3: na tuhé pohonné hmoty
B4: a letu rakety
B6: =Motor!A2 -> V 2.9 | D6: Nutno povolit použití maker - jinak nefunguje !
B8: Na listu "Motor" se do světle zelenkatých polí zadají parametry raketového motoru
B9: a v boxu pod "Druh elementu TPH" se vybere typ elementu raketového paliva (trubka, kříž, hvězda….)
B10: V listu "Elementy" je před výpočtem možné upravit parametry palivových elementů.
B11: Na listu "Povrchy" je závislost hořícího povrchu elementu na odhořrlé vzdálenosti.
B12: Vlastní simulace a let se spustí kliknutím na tlačítku "Řešit výpočet integrací" na listě Motor.
B13: Druh paliva se zadává na listu "Motor" v sekci Rychlost hoření, kde se zadávají parametry rychlostní rovnice hoření (měnit opatrně)
B14: Pokud se nezadá hmotnost rakety ("F4"), dopočte se dle pracovního tlaku v komoře
B15: Pokud se kromě hmotnosti rakety ("F4") nezadá ani pracovní tlak v komoře ("D8"), obojí se automaticky dopočte
B16: a k tomu odpovídající síla stěny spalovací komory.
B17: Laborujte nejen s kritickým průměrem trysky, al etaké s jejím výstupním, aby docházelo k co nejmenším ztrátám expanzí (viz sloupec V).
B18: Při nereálném zadání parametrů se integreace zastaví s upozorněním.
B19: Na listě "Grafy" jsou zobrazeny parametry v závislosti na čase.
B20: Na listech f( ) je znázorněna závislost průběhu parametrů na kritickémm průmněru trysky (Dkr) a rychlostním parametru hoření paliva "a"
B21: případně dalších. Spouštějí se po zadání sloupce Dkr resp. "a" makry zavDkr a zavRHor. Trvá několik minut.
B22: List "Povrchy" informuje o hořícím povrchu různých elementů v závislosti na odhořelé vzdálenosti.
B23: U malých raket s krátkou dobou hoření si zkraťte integrační interval Dtau ("I5").
B25: Program umožňuje počítat i další stupně vícestupňové rakety zadáním počáteční výšky a rychlosti ("R4", "R3").
B26: Také umožňuje počítat start vícenásobného boosteru zadáním počtu boosterů do "I9". Do "F4" pak zadáte celkovou hmotnost rakety
B27: Pokud se hlásí příliš dlouhá integrace, zkuste zmenšit přesnost.
B29: Před používáním programu doporučuji uchovat si kopii původního programu.

Sheet Motor
A1: Výpočet raketového motoru na TPH
A2: V 2.9 | B2: Vstupní data jen do zelenkavého podbarvení | Q2: Jde o vyšší stupěň
A3: Parametry: | H3: Náměr (deg) | I3: 90 | K3: Celk.doba letu | N3: par Bk | Q3: p.rychlost | S3: Rychlost hoření
A4: Průměr komory D (m) | C4: 0.2 | E4: Hmot. rakety | H4: Koef.odporu: | I4: 0.2 | K4: Teor. výška | N4: par b | Q4: p.výška | S4: rp = 29163E-9*EXP(0,00243*(25-15))*p0,37
A5: Délka elementu L (m) | C5: 1 | E5: Hmot. paliva | H5: DTau integr. | I5: 0.2 | K5: Skut. výška (m) | N5: Fmax zahraz | S5: a | T5: 2.9163e-05 | V5: 2.9163e-05
A6: Průměr trysky dkr (m) | C6: 0.04 | D6: =PI()*C6*C6/4 -> 0.001256637061 | E6: Výst.pr.trysky | F6: 0.05 | H6: Objem TPH (m3) | K6: Motor výška | N6: L trysky (m) | O6: =(F6-C6)/2/0.2679 -> 0.01866368048 | S6: E | T6: 0.00243 | V6: 0.00243
A7: Teplota hoření (K) | C7: 2373 | E7: Průměr tyče | F7: 0.06 | H7: Doba hoření (s) | K7: Počet tyčí | N7: mTHP/mRak | O7: =F5/F4 ->  | S7: n | T7: 0.37 | V7: 0.37
A8: Pracovní tlak (Pa) | C8: =101325*D8 -> 0 | E8: Tah stř (N) | F8: =AVERAGE(J12:J200) -> 7564.305469 | G8: =F9/I7 ->  | H8: wkr (m/s) | I8: =SQRT(2*T9*8.314*C7/(T9+1)) -> 149.3401679 | K8: Abs. přesnost | L8: 0.02 | N8: stěna k. (mm) | Q8: Hybnost | R8: 24162.99135 | S8: hustota | T8: 1600 | V8: 1600
A9: Druh elemnetu TPH | C9: Trubka | D9: ano | E9: Impulz (N.s) | F9: 84716.55836 | H9: Okolní tlak (Pa) | I9: =101320*EXP(-0.0001249*R4) -> 101320 | K9: Okolní T (°C) | L9: 25 | N9: Machmax | Q9: hTHP | R9: 0.4972995818 | S9: kapa | T9: 1.3 | V9: 1.3
A10: 1.005 | C10: =MAX(C12:C199) -> 0.6282381562 | E10: Isp (N.s/kg) | F10: 1702.406443 | H10: Počet boosterů | K10: 1148.410679 | L10: 427.3910234 | M10: 107.4433921 | N10: 6799.444203 | O10: 4.124821521e-11 | Q10: 84716.55836 | R10: 11.79357216 | S10: MV spalin | T10: 0.035 | V10: 0.035
A11: Čas (s) | B11: D (m) | C11: Shoř (m2) | D11: mp(kg/s) | E11: G(kg/s) | F11: SG(kg) | G11: Tlak (Pa) | H11: rozdíl | I11: wvýtok (m/s) | J11: Tah (N) | K11: vteo (m/s) | L11: vsk (m/s) | M11: p (bar) | N11: výška(m) | O11: dálka(m) | P11: náměr (°) | Q11: Impuls(Ns) | R11: rh (mm/s) | S11: Pout (Pa) | T11: Ae/Akr | U11: da (m) | V11: Tahexp | W11: pkr
A12: 0 | B12: 0 | C12: 0.06283185307 | D12: 0.2111134698 | E12: 0.1131571002 | F12: 0 | G12: 101320 | I12: =wVytok(G12) -> 0 | J12: =E12*I12 -> 0 | K12: 0 | L12: 0 | M12: =G12/101325 -> 0.9999506538 | N12: 0 | O12: 0 | Q12: 0
A13: 0.2 | B13: 0.0006210768337 | C13: 0.06767361115 | D13: 0.3374532724 | E13: 0.3415783387 | F13: 0.06422606948 | G13: 305846.6257 | H13: 0.004125066291 | I13: 1048.515125 | J13: 249.0848321 | K13: 0.6337848524 | L13: 0 | M13: 3.058466257 | N13: 0 | O13: 0 | P13: 90 | Q13: 66.06561179 | R13: 3.160423209 | S13: 49962.08972 | T13: 1.11765757 | U13: 0.04228773005 | V13: -0.2881982232 | W13: 1.669089859
A14: 0.4 | B14: 0.001264245807 | C14: 0.07077534375 | D14: 0.3704615314 | E14: 0.3749900943 | F14: 0.1349795642 | G14: 335763.2556 | H14: 0.004528562917 | I14: 1086.299139 | J14: 306.7534988 | K14: 1.380441266 | L14: 0 | M14: 3.357632556 | N14: 0 | O14: 0 | P14: 90 | Q14: 141.6272637 | R14: 3.271456483 | S14: 54849.17383 | T14: 1.159072353 | U14: 0.04306408904 | V14: -0.2292791617 | W14: 1.832353206
A15: 0.6 | B15: 0.001929734887 | C15: 0.07495673496 | D15: 0.4058003719 | E15: 0.4107609207 | F15: 0.2125660499 | G15: 367792.1793 | H15: 0.004960548828 | I15: 1121.221888 | J15: 369.0092616 | K15: 2.244629547 | L15: 0 | M15: 3.677921793 | N15: 0 | O15: 0 | P15: 90 | Q15: 227.3019649 | R15: 3.383621666 | S15: 60081.3125 | T15: 1.204498756 | U15: 0.04389986343 | V15: -0.1799631138 | W15: 2.007143925
A16: 0.8 | B16: 0.002617768908 | C16: 0.07927978021 | D16: 0.4435739717 | E16: 0.4489962692 | F16: 0.297462026 | G16: 402027.8172 | H16: 0.005422297509 | I16: 1153.645588 | J16: 436.1016203 | K16: 3.23323254 | L16: 0 | M16: 4.020278172 | N16: 0 | O16: 0 | P16: 90 | Q16: 323.9024769 | R16: 3.496903391 | S16: 65673.93267 | T16: 1.253600228 | U16: 0.04478571609 | V16: -0.1383133474 | W16: 2.193977296
A17: 1 | B17: 0.003328569691 | C17: 0.08374587325 | D17: 0.4838885932 | E17: 0.4898037011 | F17: 0.3901650358 | G17: 438566.4789 | H17: 0.005915107921 | I17: 1183.866627 | J17: 508.281843 | K17: 4.353855741 | L17: 0 | M17: 4.385664789 | N17: 0 | O17: 0 | P17: 90 | Q17: 432.2859897 | R17: 3.611286849 | S17: 71642.76717 | T17: 1.306139961 | U17: 0.04571459218 | V17: -0.1028675565 | W17: 2.393378906
A18: 1.2 | B18: 0.004062356144 | C18: 0.08835638951 | D18: 0.5268525758 | E18: 0.5332928802 | F18: 0.4911940831 | G18: 477506.3564 | H18: 0.006440304418 | I18: 1212.131113 | J18: 585.8038873 | K18: 5.614780175 | L18: 0 | M18: 4.775063564 | N18: 0 | O18: 0 | P18: 90 | Q18: 553.3544568 | R18: 3.726757756 | S18: 78003.85632 | T18: 1.36194994 | U18: 0.04668104437 | V18: -0.07250052599 | W18: 2.605884618
A19: 1.4 | B19: 0.00481934437 | C19: 0.09311268681 | D19: 0.5725763285 | E19: 0.5795755652 | F19: 0.6010900466 | G19: 518947.5177 | H19: 0.006999236651 | I19: 1238.645958 | J19: 668.9250204 | K19: 7.024933984 | L19: 0 | M19: 5.189475177 | N19: 0 | O19: 0 | P19: 90 | Q19: 688.0550838 | R19: 3.843302321 | S19: 84773.54689 | T19: 1.420910906 | U19: 0.047680787 | V19: -0.04633248227 | W19: 2.832040528
A20: 1.6 | B20: 0.005599747761 | C20: 0.09801610593 | D20: 0.6211723233 | E20: 0.6287656027 | F20: 0.7204160932 | G20: 562991.9002 | H20: 0.007593279489 | I20: 1263.587 | J20: 757.9062494 | K20: 8.59387703 | L20: 0 | M20: 5.629919002 | N20: 0 | O20: 0 | P20: 90 | Q20: 837.3809224 | R20: 3.960907224 | S20: 91968.49103 | T20: 1.482938972 | U20: 0.04871039269 | V20: -0.02366609543 | W20: 3.072402939
A21: 1.8 | B21: 0.006403777089 | C21: 0.1030679712 | D21: 0.6727550876 | E21: 0.6809789205 | F21: 0.8497580897 | G21: 609743.3047 | H21: 0.008223832931 | I21: 1287.105069 | J21: 853.0126245 | K21: 10.33179494 | L21: 0 | M21: 6.097433047 | N21: 0 | O21: 0 | P21: 90 | Q21: 1002.371538 | R21: 4.079559585 | S21: 99605.64529 | T21: 1.547976436 | U21: 0.04976708046 | V21: -0.00394207163 | W21: 3.327538319
A22: 2 | B22: 0.007231640594 | C22: 0.108269591 | D22: 0.7274411985 | E22: 0.7363335205 | F22: 0.9897250138 | G22: 659307.3891 | H22: 0.008892322026 | I22: 1309.330607 | J22: 954.5134574 | K22: 12.24950034 | L22: 0 | M22: 6.593073891 | N22: 0 | O22: 0 | P22: 90 | Q22: 1184.11373 | R22: 4.199246943 | S22: 107702.2696 | T22: 1.615985326 | U22: 0.05084856459 | V22: 0.01329283407 | W22: 3.598023273
A23: 2.2 | B23: 0.008083544062 | C23: 0.1136222583 | D23: 0.7853492753 | E23: 0.7949494721 | F23: 1.140949363 | G23: 711791.6628 | H23: 0.00960019679 | I23: 1330.377247 | J23: 1062.682479 | K23: 14.35843972 | L23: 0 | M23: 7.117916628 | N23: 0 | O23: 0 | P23: 90 | Q23: 1383.74229 | R23: 4.319957235 | S23: 116275.9264 | T23: 1.686942773 | U23: 0.05195294445 | V23: 0.02840929561 | W23: 3.884444511
A24: 2.4 | B24: 0.008959690904 | C24: 0.1191272513 | D24: 0.8465999739 | E24: 0.856948906 | F24: 1.304087561 | G24: 767305.4806 | H24: 0.01034893213 | I24: 1350.345063 | J24: 1177.798665 | K24: 16.67071057 | L24: 0.1647865109 | M24: 7.673054806 | N24: 0.01358073998 | O24: 3.363556864e-16 | P24: 90 | Q24: 1602.440786 | R24: 4.441678775 | S24: 125344.4794 | T24: 1.760839356 | U24: 0.0530786489 | V24: 0.04171321898 | W24: 4.187398811
A25: 2.6 | B25: 0.009860282232 | C25: 0.1247858335 | D25: 0.9113159801 | E25: 0.9224560079 | F25: 1.479820369 | G25: 825960.0374 | H25: 0.01114002778 | I25: 1369.323158 | J25: 1300.147108 | K25: 19.19908572 | L25: 0.5502655602 | M25: 8.259600374 | N25: 0.08115249145 | O25: 1.393875047e-15 | P25: 90 | Q25: 1841.442452 | R25: 4.564400233 | S25: 134926.0931 | T25: 1.837678869 | U25: 0.05422440586 | V25: 0.05345911451 | W25: 4.507492994
A26: 2.8 | B26: 0.01078551693 | C26: 0.1305992545 | D26: 0.9796220037 | E26: 0.9915970119 | F26: 1.668853284 | G26: 887868.3623 | H26: 0.0119750082 | I26: 1387.390728 | J26: 1430.018163 | K26: 21.95702896 | L26: 1.179410502 | M26: 8.878683623 | N26: 0.2499295415 | O26: 3.248834771e-15 | P26: 90 | Q26: 2102.031174 | R26: 4.688110621 | S26: 145039.2316 | T26: 1.91747466 | U26: 0.05538916371 | V26: 0.06385971427 | W26: 4.845343893
A27: 3 | B27: 0.0117355917 | C27: 0.1365687504 | D27: 1.051644772 | E27: 1.064500195 | F27: 1.871916949 | G27: 953145.3134 | H27: 0.01285542253 | I27: 1404.61841 | J27: 1567.707342 | K27: 24.9587182 | L27: 2.068030943 | M27: 9.531453134 | N27: 0.5702135138 | O27: 5.982499273e-15 | P27: 90 | Q27: 2385.54241 | R27: 4.812799274 | S27: 155702.6577 | T27: 2.000247983 | U27: 0.0565720494 | V27: 0.07309383027 | W27: 5.201578319
A28: 3.2 | B28: 0.01271070116 | C28: 0.1426955439 | D28: 1.127513026 | E28: 1.141295871 | F28: 2.089767554 | G28: 1021907.573 | H28: 0.01378284449 | I28: 1421.069489 | J28: 1713.515404 | K28: 28.21907357 | L28: 3.23270937 | M28: 10.21907573 | N28: 1.0955447 | O28: 9.681365172e-15 | P28: 90 | Q28: 2693.364108 | R28: 4.938455836 | S28: 166935.4321 | T28: 2.086027151 | U28: 0.05777234149 | V28: 0.08131258967 | W28: 5.576833038
A29: 3.4 | B29: 0.01371103789 | C29: 0.1489808449 | D29: 1.207357511 | E29: 1.222116384 | F29: 2.323187238 | G29: 1094273.64 | H29: 0.01475887235 | I29: 1436.800904 | J29: 1867.748433 | K29: 31.7537891 | L29: 4.690835592 | M29: 10.9427364 | N29: 1.882860043 | O29: 1.443741652e-14 | P29: 90 | Q29: 3026.937631 | R29: 5.065070245 | S29: 178756.9128 | T29: 2.17484695 | U29: 0.05898944923 | V29: 0.08864436588 | W29: 5.971754739
A30: 3.6 | B30: 0.01473679246 | C30: 0.155425851 | D30: 1.291310975 | E30: 1.307096104 | F30: 2.572984487 | G30: 1170363.83 | H30: 0.01578512882 | I30: 1451.864086 | J30: 2030.717912 | K30: 35.57936821 | L30: 6.460643699 | M30: 11.7036383 | N30: 2.99265825 | O30: 2.034839155e-14 | P30: 90 | Q30: 3387.758706 | R30: 5.192632721 | S30: 191186.7537 | T30: 2.266748275 | U30: 0.06022289631 | V30: 0.09519871177 | W30: 6.387000009
A31: 3.8 | B31: 0.01578815355 | C31: 0.1620317475 | D31: 1.37950816 | E31: 1.396371421 | F31: 2.839994538 | G31: 1250300.265 | H31: 0.01686326101 | I31: 1466.305659 | J31: 2202.740802 | K31: 39.71316316 | L31: 8.561251775 | M31: 12.50300265 | N31: 4.489172579 | O31: 2.751806184e-14 | P31: 90 | Q31: 3777.378381 | R31: 5.321133751 | S31: 204244.9044 | T31: 2.361777926 | U31: 0.06147230824 | V31: 0.1010695216 | W31: 6.823235304
A32: 4 | B32: 0.01686530792 | C32: 0.168799708 | D32: 1.4720858 | E32: 1.49008074 | F32: 3.125079777 | G32: 1334206.871 | H32: 0.01799494036 | I32: 1480.168035 | J32: 2384.139616 | K32: 44.17341862 | L32: 11.0127046 | M32: 13.34206871 | N32: 6.440551856 | O32: 3.60565247e-14 | P32: 90 | Q32: 4197.404005 | R32: 5.450564079 | S32: 217951.609 | T32: 2.459988554 | U32: 0.06273740261 | V32: 0.1063375907 | W32: 7.281136921
A33: 4.2 | B33: 0.01796844053 | C33: 0.1757308946 | D33: 1.569182611 | E33: 1.588364474 | F33: 3.429130132 | G33: 1422209.372 | H33: 0.01918186257 | I33: 1493.489917 | J33: 2575.242495 | K33: 48.97931985 | L33: 13.83601958 | M33: 14.22209372 | N33: 8.919050354 | O33: 4.608050999e-14 | P33: 90 | Q33: 4649.500211 | R33: 5.580914694 | S33: 232327.4055 | T33: 2.561438723 | U33: 0.06401798151 | V33: 0.1110727023 | W33: 7.761390978
A34: 4.4 | B34: 0.01909773456 | C34: 0.1828264583 | D34: 1.670939291 | E34: 1.691365039 | F34: 3.753063475 | G34: 1514435.289 | H34: 0.02042574753 | I34: 1506.306735 | J34: 2776.383292 | K34: 54.15104566 | L34: 17.05323625 | M34: 15.14435289 | N34: 12.00122721 | O34: 5.771370225e-14 | P34: 90 | Q34: 5135.389922 | R34: 5.71217682 | S34: 247393.1251 | T34: 2.666193072 | U34: 0.06531392589 | V34: 0.1153353376 | W34: 8.264693381
A35: 4.6 | B35: 0.02025337145 | C35: 0.190087539 | D35: 1.777498512 | E35: 1.799226851 | F35: 4.097826014 | G35: 1611013.929 | H35: 0.02172833928 | I35: 1518.651013 | J35: 2987.901656 | K35: 59.70982677 | L35: 20.68746965 | M35: 16.11013929 | N35: 15.76815611 | O35: 7.108707948e-14 | P35: 90 | Q35: 5656.855374 | R35: 5.844341905 | S35: 263169.8912 | T35: 2.774322581 | U35: 0.0666251914 | V35: 0.1191780872 | W35: 8.791749804
A36: 4.8 | B36: 0.02143553097 | C36: 0.1975152663 | D36: 1.889004915 | E36: 1.912096321 | F36: 4.464392688 | G36: 1712076.386 | H36: 0.02309140594 | I36: 1530.552693 | J36: 3210.143118 | K36: 65.67800998 | L36: 24.76296792 | M36: 17.12076386 | N36: 20.30564612 | O36: 8.633926986e-14 | P36: 90 | Q36: 6215.739149 | R36: 5.977401616 | S36: 279679.1189 | T36: 2.88590491 | U36: 0.06795180539 | V36: 0.1226468198 | W36: 9.343275665
A37: 5 | B37: 0.0226443912 | C37: 0.2051107592 | D37: 2.005605106 | E37: 2.030121846 | F37: 4.853767562 | G37: 1817755.537 | H37: 0.02451673963 | I37: 1542.039415 | J37: 3443.459186 | K37: 72.07912874 | L37: 29.30517461 | M37: 18.17755537 | N37: 25.70447439 | O37: 1.036169278e-13 | P37: 90 | Q37: 6813.945233 | R37: 6.111347823 | S37: 296942.5142 | T37: 3.001024836 | U37: 0.06929386508 | V37: 0.1257816563 | W37: 9.919996097
A38: 5.2 | B38: 0.02388012867 | C38: 0.2128751266 | D38: 2.127447652 | E38: 2.153453809 | F38: 5.266984217 | G38: 1928186.031 | H38: 0.02600615645 | I38: 1553.136755 | J38: 3688.207449 | K38: 78.93798081 | L38: 34.34079605 | M38: 19.28186031 | N38: 32.06063197 | O38: 1.230751308e-13 | P38: 90 | Q38: 7453.440087 | R38: 6.246172597 | S38: 314982.0732 | T38: 3.119774761 | U38: 0.07065153655 | V38: 0.1286177856 | W38: 10.52264593
A39: 5.4 | B39: 0.02514291829 | C39: 0.2208094679 | D39: 2.254683074 | E39: 2.282244571 | F39: 5.705106144 | G39: 2043504.292 | H39: 0.02756149639 | I39: 1563.868441 | J39: 3944.751678 | K39: 86.28071383 | L39: 39.8978744 | M39: 20.43504292 | N39: 39.47558351 | O39: 1.449314833e-13 | P39: 90 | Q39: 8136.253737 | R39: 6.381868201 | S39: 333820.0815 | T39: 3.242255306 | U39: 0.0720250546 | V39: 0.1311861489 | W39: 11.15196966
A40: 5.6 | B40: 0.0264329335 | C40: 0.2289148724 | D40: 2.387463845 | E40: 2.416648468 | F40: 6.169227133 | G40: 2163848.511 | H40: 0.02918462328 | I40: 1574.25654 | J40: 4213.461945 | K40: 94.13491949 | L40: 46.00586699 | M40: 21.63848511 | N40: 48.05654229 | O40: 1.693055091e-13 | P40: 90 | Q40: 8864.480896 | R40: 6.518427078 | S40: 353479.1138 | T40: 3.368575992 | U40: 0.07341472323 | V40: 0.1335140181 | W40: 11.80872144
A41: 5.8 | B41: 0.02775034619 | C41: 0.2371924205 | D41: 2.525944382 | E41: 2.556821807 | F41: 6.660471662 | G41: 2289358.644 | H41: 0.03087742475 | I41: 1584.321622 | J41: 4494.71474 | K41: 102.5297375 | L41: 52.69573245 | M41: 22.89358644 | N41: 57.91676175 | O41: 1.963801738e-13 | P41: 90 | Q41: 9640.282093 | R41: 6.65584185 | S41: 373982.0325 | T41: 3.498856 | U41: 0.07482091687 | V41: 0.1356254856 | W41: 12.49366505
A42: 6 | B42: 0.02909532682 | C42: 0.245643183 | D42: 2.670281046 | E42: 2.702922858 | F42: 7.17999529 | G42: 2420176.405 | H42: 0.03264181217 | I42: 1594.082906 | J42: 4788.893107 | K42: 111.4959705 | L42: 60.00002458 | M42: 24.20176405 | N42: 69.17584501 | O42: 2.263487014e-13 | P42: 90 | Q42: 10465.88484 | R42: 6.794105309 | S42: 395351.9879 | T42: 3.633225038 | U42: 0.07624408214 | V42: 0.1375418803 | W42: 13.20757385
A43: 6.2 | B43: 0.03046804442 | C43: 0.2542682221 | D43: 2.820632135 | E43: 2.855111855 | F43: 7.728985039 | G43: 2556445.266 | H43: 0.03447972058 | I43: 1603.558386 | J43: 5096.386776 | K43: 121.0662107 | L43: 67.95299472 | M43: 25.56445266 | N43: 81.96007398 | O43: 2.594151057e-13 | P43: 90 | Q43: 11343.58482 | R43: 6.93321041 | S43: 417612.4168 | T43: 3.771824294 | U43: 0.07768474027 | V43: 0.1392821228 | W43: 13.95123082
A44: 6.4 | B44: 0.03186866663 | C44: 0.263068591 | D44: 2.977157878 | E44: 3.013550987 | F44: 8.308659784 | G44: 2698310.45 | H44: 0.03639310865 | I44: 1612.764954 | J44: 5417.592318 | K44: 131.2749806 | L44: 76.59070361 | M44: 26.9831045 | N44: 96.40275996 | O44: 2.957947567e-13 | P44: 90 | Q44: 12275.7471 | R44: 7.073150264 | S44: 440787.0424 | T44: 3.914807505 | U44: 0.07914348999 | V44: 0.1408630292 | W44: 14.72542847
A45: 6.6 | B45: 0.03329735972 | C45: 0.2720453345 | D45: 3.140020436 | E45: 3.178404395 | F45: 8.92027064 | G45: 2845918.928 | H45: 0.03838395865 | I45: 1621.718495 | J45: 5752.913301 | K45: 142.1588887 | L45: 85.95114389 | M45: 28.45918928 | N45: 112.6446175 | O45: 3.357149849e-13 | P45: 90 | Q45: 13264.80737 | R45: 7.213918138 | S45: 464899.8733 | T45: 4.062342145 | U45: 0.08062101111 | V45: 0.1422995721 | W45: 15.53096887
A46: 6.8 | B46: 0.03475428865 | C46: 0.2811994889 | D46: 3.309383892 | E46: 3.349838168 | F46: 9.565101348 | G46: 2999419.414 | H46: 0.04045427636 | I46: 1630.433984 | J46: 6102.760461 | K46: 153.7568026 | L46: 96.07437451 | M46: 29.99419414 | N46: 130.8341642 | O46: 3.794157266e-13 | P46: 90 | Q46: 14313.27325 | R46: 7.355507441 | S46: 489975.2034 | T46: 4.21461074 | U46: 0.08211806856 | V46: 0.1436051048 | W46: 16.3686636
A47: 7 | B47: 0.03623961703 | C47: 0.2905320824 | D47: 3.485414251 | E47: 3.528020342 | F47: 10.24446865 | G47: 3158962.366 | H47: 0.04260609102 | I47: 1638.925569 | J47: 6467.551883 | K47: 166.1100412 | L47: 107.0026685 | M47: 31.58962366 | N47: 151.1281482 | O47: 4.271502154e-13 | P47: 90 | Q47: 15423.72558 | R47: 7.497911725 | S47: 516037.6105 | T47: 4.371812327 | U47: 0.08363551711 | V47: 0.1447915556 | W47: 17.23933373
A48: 7.2 | B48: 0.03775350725 | C48: 0.3000441351 | D48: 3.668279434 | E48: 3.713120889 | F48: 10.9597227 | G48: 3324699.977 | H48: 0.04484145533 | I48: 1647.206642 | J48: 6847.713194 | K48: 179.2625898 | L48: 118.7806761 | M48: 33.24699977 | N48: 173.6920075 | O48: 4.791857231e-13 | P48: 90 | Q48: 16598.81975 | R48: 7.641124681 | S48: 543111.9566 | T48: 4.534164078 | U48: 0.08517430672 | V48: 0.145869595 | W48: 18.14380984
A49: 7.4 | B49: 0.0392961204 | C49: 0.3097366594 | D49: 3.858149274 | E49: 3.90531172 | F49: 11.7122474 | G49: 3496786.173 | H49: 0.04716244535 | I49: 1655.289911 | J49: 7243.677774 | K49: 193.261339 | L49: 131.4556047 | M49: 34.96786173 | N49: 198.7003628 | O49: 5.358043571e-13 | P49: 90 | Q49: 17841.28716 | R49: 7.785140128 | S49: 571223.3864 | T49: 4.7019031 | U49: 0.08673548847 | V49: 0.1468487817 | W49: 19.08293194
A50: 7.6 | B50: 0.04086761639 | C50: 0.3196106599 | D50: 4.055195514 | E50: 4.104766675 | F50: 12.50346083 | G50: 3675376.611 | H50: 0.04957116048 | I50: 1663.187458 | J50: 7655.88697 | K50: 208.1563532 | L50: 145.0774183 | M50: 36.75376611 | N50: 226.3375488 | O50: 5.973039177e-13 | P50: 90 | Q50: 19153.93657 | R50: 7.929952014 | S50: 600397.3277 | T50: 4.875288433 | U50: 0.08832022132 | V50: 0.147737689 | W50: 20.05754949
A51: 7.8 | B51: 0.04246815391 | C51: 0.3296671337 | D51: 4.259591802 | E51: 4.311661525 | F51: 13.33481561 | G51: 3860628.674 | H51: 0.05206972341 | I51: 1670.910798 | J51: 8084.79034 | K51: 224.0011714 | L51: 159.6990596 | M51: 38.60628674 | N51: 256.7981871 | O51: 6.639988246e-13 | P51: 90 | Q51: 20539.65563 | R51: 8.075554411 | S51: 630659.4898 | T51: 5.054603287 | U51: 0.08992977961 | V51: 0.1485440152 | W51: 21.06852137
A52: 8 | B52: 0.04409789047 | C52: 0.3399070706 | D52: 4.471513684 | E52: 4.526173964 | F52: 14.20779925 | G52: 4052701.467 | H52: 0.05466028004 | I52: 1678.470928 | J52: 8530.845898 | K52: 240.8531449 | L52: 175.3766971 | M52: 40.52701467 | N52: 290.2878064 | O52: 7.362211181e-13 | P52: 90 | Q52: 22001.41242 | R52: 8.221941508 | S52: 662035.8638 | T52: 5.240157521 | U52: 0.0915655614 | V52: 0.1492746799 | W52: 22.11671588
A53: 8.2 | B53: 0.04575698245 | C53: 0.3503314529 | D53: 4.691138607 | E53: 4.748483606 | F53: 15.12393461 | G53: 4251755.816 | H53: 0.05734499949 | I53: 1685.878371 | J53: 8994.520388 | K53: 258.7738185 | L53: 192.1700015 | M53: 42.51755816 | N53: 327.023515 | O53: 8.143215459e-13 | P53: 90 | Q53: 23542.25698 | R53: 8.369107612 | S53: 694552.7217 | T53: 5.432290424 | U53: 0.09322909781 | V53: 0.1499359089 | W53: 23.20301066
A54: 8.4 | B54: 0.04744558508 | C54: 0.3609412561 | D54: 4.918645909 | E54: 4.978771983 | F54: 16.08478019 | G54: 4457954.263 | H54: 0.06012607403 | I54: 1693.143226 | J54: 9476.289566 | K54: 277.8293612 | L54: 210.1424556 | M54: 44.57954263 | N54: 367.2347315 | O54: 8.986707435e-13 | P54: 90 | Q54: 25165.32298 | R54: 8.517047139 | S54: 728236.6156 | T54: 5.631373821 | U54: 0.09492206337 | V54: 0.1505333074 | W54: 24.32829278
A55: 8.6 | B55: 0.0491638525 | C55: 0.3717374487 | D55: 5.154216819 | E55: 5.217222538 | F55: 17.09193054 | G55: 4671461.063 | H55: 0.06300571901 | I55: 1700.275199 | J55: 9976.638508 | K55: 298.0910537 | L55: 229.3617035 | M55: 46.71461063 | N55: 411.1639815 | O55: 9.896605213e-13 | P55: 90 | Q55: 26873.82942 | R55: 8.665754615 | S55: 763114.3777 | T55: 5.837815566 | U55: 0.09664628759 | V55: 0.1510719258 | W55: 25.49345859
A56: 8.8 | B56: 0.05091193776 | C56: 0.3827209924 | D56: 5.398034453 | E56: 5.464020626 | F56: 18.14701669 | G56: 4892442.179 | H56: 0.06598617286 | I56: 1707.283645 | J56: 10496.06194 | K56: 319.6358432 | L56: 249.8999449 | M56: 48.92442179 | N56: 459.0677689 | O56: 1.087705272e-12 | P56: 90 | Q56: 28671.08236 | R56: 8.815224669 | S56: 799213.1194 | T56: 6.052063458 | U56: 0.09840376788 | V56: 0.1515563168 | W56: 26.69941383
A57: 9 | B57: 0.05268999285 | C57: 0.393892842 | D57: 5.650283809 | E57: 5.719353506 | F57: 19.25170644 | G57: 5121065.282 | H57: 0.06906969701 | I57: 1714.1776 | J57: 11035.06458 | K57: 342.5469755 | L57: 271.834382 | M57: 51.21065282 | N57: 511.2175304 | O57: 1.193243514e-12 | P57: 90 | Q57: 30560.4768 | R57: 8.965452032 | S57: 836560.2308 | T57: 6.274609666 | U57: 0.1001966839 | V57: 0.1519905856 | W57: 27.94707351
A58: 9.2 | B58: 0.05449816872 | C58: 0.405253946 | D58: 5.911151765 | E58: 5.983410341 | F58: 20.40770478 | G58: 5357499.747 | H58: 0.07225857588 | I58: 1720.965814 | J58: 11594.16152 | K58: 366.9147183 | L58: 295.2477289 | M58: 53.57499747 | N58: 567.9006868 | O58: 1.306739587e-12 | P58: 90 | Q58: 32545.49854 | R58: 9.116431534 | S58: 875183.3803 | T58: 6.505995726 | U58: 0.1020274138 | V58: 0.152378435 | W58: 29.23736196
A59: 9.4 | B59: 0.05633661527 | C59: 0.4168052464 | D59: 6.180827073 | E59: 6.25638219 | F59: 21.6167543 | G59: 5601916.648 | H59: 0.0755551168 | I59: 1727.656644 | J59: 12173.87762 | K59: 392.8371619 | L59: 320.0338451 | M59: 56.01916648 | N59: 629.4134549 | O59: 1.428672042e-12 | P59: 90 | Q59: 34629.72618 | R59: 9.2681581 | S59: 915110.5141 | T59: 6.74681331 | U59: 0.1038985144 | V59: 0.1527231979 | W59: 30.57121277
A60: 9.6 | B60: 0.05820548143 | C60: 0.4285476788 | D60: 6.45950036 | E60: 6.53846201 | F60: 22.88063547 | G60: 5854488.757 | H60: 0.07896165003 | I60: 1734.256016 | J60: 12774.73148 | K60: 420.4206634 | L60: 345.001231 | M60: 58.54488757 | N60: 695.9286373 | O60: 1.559320049e-12 | P60: 90 | Q60: 36816.833 | R60: 9.420626747 | S60: 956369.8555 | T60: 6.997628355 | U60: 0.105812123 | V60: 0.1530277858 | W60: 31.94956882
A61: 9.8 | B61: 0.06010491512 | C61: 0.4404821726 | D61: 6.747364122 | E61: 6.82984465 | F61: 24.20116713 | G61: 6115390.539 | H61: 0.08248052863 | I61: 1740.764457 | J61: 13397.20831 | K61: 449.7800045 | L61: 368.0448053 | M61: 61.15390539 | N61: 767.2909221 | O61: 1.698432696e-12 | P61: 90 | Q61: 39110.58623 | R61: 9.573832582 | S61: 998989.9047 | T61: 7.258840715 | U61: 0.1077689433 | V61: 0.1532946601 | W61: 33.3733822
A62: 10 | B62: 0.06203506329 | C62: 0.4526096513 | D62: 7.044612719 | E62: 7.130726847 | F62: 25.58020678 | G62: 6384798.151 | H62: 0.0861141285 | I62: 1747.174524 | J62: 14041.73036 | K62: 481.0385007 | L62: 386.1920435 | M62: 63.84798151 | N62: 842.8194628 | O62: 1.844910045e-12 | P62: 90 | Q62: 41514.84164 | R62: 9.7277708 | S62: 1042999.438 | T62: 7.530516365 | U62: 0.1097671453 | V62: 0.1535258926 | W62: 34.84361426
A63: 10.2 | B63: 0.06399607195 | C63: 0.464931032 | D63: 7.351442375 | E63: 7.441307223 | F63: 27.01965096 | G63: 6662889.439 | H63: 0.08986484831 | I63: 1753.471734 | J63: 14708.65264 | K63: 514.3289862 | L63: 397.8245223 | M63: 66.62889439 | N63: 921.3280826 | O63: 1.996835777e-12 | P63: 90 | Q63: 44033.53287 | R63: 9.882436679 | S63: 1088427.508 | T63: 7.812332938 | U63: 0.1118022035 | V63: 0.1537233818 | W63: 36.36123554
A64: 10.4 | B64: 0.06598808616 | C64: 0.4774472265 | D64: 7.668051174 | E64: 7.761786284 | F64: 28.52143566 | G64: 6949843.932 | H64: 0.09373510944 | I64: 1759.642169 | J64: 15398.31986 | K64: 549.7971066 | L64: 404.2654514 | M64: 69.49843932 | N64: 1001.606468 | O64: 2.152254579e-12 | P64: 90 | Q64: 46670.65976 | R64: 10.03782558 | S64: 1135303.442 | T64: 8.103848585 | U64: 0.1138690377 | V64: 0.1538891836 | W64: 37.9272258
A65: 10.6 | B65: 0.06801125008 | C65: 0.4901591403 | D65: 7.994639056 | E65: 8.092366412 | F65: 30.08753669 | G65: 7245842.845 | H65: 0.09772735599 | I65: 1765.678814 | J65: 16111.12555 | K65: 587.6052759 | L65: 407.9276013 | M65: 72.45842845 | N65: 1082.860721 | O65: 2.309883877e-12 | P65: 90 | Q65: 49430.286 | R65: 10.19393295 | S65: 1183656.842 | T65: 8.404813846 | U65: 0.1159642279 | V65: 0.1540256035 | W65: 39.54257395
A66: 10.8 | B66: 0.07006570694 | C66: 0.5030676735 | D66: 8.331407813 | E66: 8.433251868 | F66: 31.71997001 | G66: 7551069.068 | H66: 0.1018440547 | I66: 1771.581063 | J66: 16847.51748 | K66: 627.9353902 | L66: 410.4383761 | M66: 75.51069068 | N66: 1164.714789 | O66: 2.46911614e-12 | P66: 90 | Q66: 52316.54699 | R66: 10.3507543 | S66: 1233517.585 | T66: 8.715221867 | U66: 0.1180862184 | V66: 0.1541350288 | W66: 41.20827811
A67: 11 | B67: 0.0721515991 | C67: 0.5161737204 | D67: 8.678561089 | E67: 8.784648783 | F67: 33.42079212 | G67: 7865707.173 | H67: 0.1060876949 | I67: 1777.351626 | J67: 17607.97678 | K67: 670.9910567 | L67: 412.5351873 | M67: 78.65707173 | N67: 1247.023031 | O67: 2.629716079e-12 | P67: 90 | Q67: 55333.65883 | R67: 10.50828523 | S67: 1284915.821 | T67: 9.035213842 | U67: 0.1202345298 | V67: 0.1542197607 | W67: 42.9253455
A68: 11.2 | B68: 0.07426906805 | C68: 0.5294781702 | D68: 9.036304372 | E68: 9.146765161 | F68: 35.19210044 | G68: 8189943.401 | H68: 0.1104607885 | I68: 1782.994409 | J68: 18393.00141 | K68: 717.0004493 | L68: 414.4904013 | M68: 81.89943401 | N68: 1329.734545 | O68: 2.79160146e-12 | P68: 90 | Q68: 58485.92401 | R68: 10.6665214 | S68: 1337881.975 | T68: 9.364998596 | U68: 0.1224091408 | V68: 0.1542819414 | W68: 44.69479252
A69: 11.4 | B69: 0.07641825439 | C69: 0.5429819063 | D69: 9.404844998 | E69: 9.519810868 | F69: 37.03603368 | G69: 8523965.667 | H69: 0.1149658701 | I69: 1788.51359 | J69: 19203.0985 | K69: 766.2201177 | L69: 416.3928199 | M69: 85.23965667 | N69: 1412.831515 | O69: 2.954743501e-12 | P69: 90 | Q69: 61777.73429 | R69: 10.82545856 | S69: 1392446.744 | T69: 9.704813318 | U69: 0.1246101974 | V69: 0.1543235393 | W69: 46.51764467
A70: 11.6 | B70: 0.07859929792 | C70: 0.5566858069 | D70: 9.784392142 | E70: 9.903997638 | F70: 38.9547722 | G70: 8867963.556 | H70: 0.1196054965 | I70: 1793.913293 | J70: 20038.7813 | K70: 818.939836 | L70: 418.2690944 | M70: 88.67963556 | N70: 1496.306502 | O70: 3.119130183e-12 | P70: 90 | Q70: 65213.5723 | R70: 10.98509251 | S70: 1448641.097 | T70: 10.05490833 | U70: 0.1268379018 | V70: 0.1543463565 | W70: 48.39493655
A71: 11.8 | B71: 0.08081233758 | C71: 0.5705907452 | D71: 10.17515682 | E71: 10.29953906 | F71: 40.95053837 | G71: 9222128.315 | H71: 0.1243822473 | I71: 1799.19749 | J71: 20900.56825 | K71: 875.4886495 | L71: 420.1271823 | M71: 92.22128315 | N71: 1580.155105 | O71: 3.284754397e-12 | P71: 90 | Q71: 68798.01262 | R71: 11.14541914 | S71: 1506496.277 | T71: 10.41554201 | U71: 0.1290924755 | V71: 0.154352042 | W71: 50.32771186
A72: 12 | B72: 0.08305751148 | C72: 0.5846975889 | D72: 10.57735187 | E72: 10.70665059 | F72: 43.02559695 | G72: 9586652.857 | H72: 0.1292987243 | I72: 1804.369985 | J72: 21788.98269 | K72: 936.2424064 | L72: 421.9700883 | M72: 95.86652857 | N72: 1664.373826 | O72: 3.451610491e-12 | P72: 90 | Q72: 72535.72274 | R72: 11.30643437 | S72: 1566043.796 | T72: 10.78697935 | U72: 0.1313741488 | V72: 0.1543421051 | W72: 52.31702339
A73: 12.2 | B73: 0.08533495697 | C73: 0.5990072009 | D73: 10.99119198 | E73: 11.12554953 | F73: 45.18225545 | G73: 9961731.757 | H73: 0.1343575518 | I73: 1809.434429 | J73: 22704.55293 | K73: 1001.633211 | L73: 423.7863421 | M73: 99.61731757 | N73: 1748.960714 | O73: 3.619695314e-12 | P73: 90 | Q73: 76431.4639 | R73: 11.46813424 | S73: 1627315.438 | T73: 11.16949284 | U73: 0.1336831648 | V73: 0.1543179278 | W73: 54.36393296
A74: 12.4 | B74: 0.08764481056 | C74: 0.613520439 | D74: 11.41689366 | E74: 11.55645504 | F74: 47.42286451 | G74: 10347561.24 | H74: 0.1395613765 | I74: 1814.394275 | J74: 23647.81159 | K74: 1072.161355 | L74: 425.5957531 | M74: 103.4756124 | N74: 1833.911058 | O74: 3.789001253e-12 | P74: 90 | Q74: 80490.09199 | R74: 11.63051479 | S74: 1690343.263 | T74: 11.56335843 | U74: 0.1360197541 | V74: 0.1542807769 | W74: 56.46951148
A75: 12.6 | B75: 0.089987208 | C75: 0.6275627086 | D75: 11.85467525 | E75: 11.99958812 | F75: 49.74981824 | G75: 10744339.21 | H75: 0.1449128673 | I75: 1819.252858 | J75: 24619.29647 | K75: 1148.410679 | L75: 427.3910234 | M75: 107.4433921 | N75: 1919.222888 | O75: 3.959525128e-12 | P75: 90 | Q75: 84716.55836 | R75: 11.79357216 | S75: 1755159.594 | T75: 11.96886105 | U75: 0.138384167 | V75: 0.1542318131 | W75: 58.63483886
A76: 12.8 | B76: 0.089987208 | C76: 0.6282381562 | D76: 0 | E76: 0 | F76: 0 | G76: 0 | H76: 0 | I76: 0 | J76: 0 | K76: 0 | L76: 423.5515924 | M76: 0 | N76: 2004.316585 | O76: 4.130330538e-12 | P76: 90 | Q76: 84716.55836 | R76: 0 | S76: 0 | T76: 0 | U76: 0 | W76: 0
H77: *** Setrvačný let *** | Q77: vy (m/s) | R77: vx (m/s)
A78: 13.8 | L78: 340.8956253 | N78: 2370.969023 | O78: 4.875756804e-12 | P78: 90 | Q78: 340.8956253 | R78: 7.024792104e-13
A79: 14.8 | L79: 317.5259462 | N79: 2699.146628 | O79: 5.562144071e-12 | P79: 90 | Q79: 317.5259462 | R79: 6.745512646e-13
A80: 15.8 | L80: 301.5365551 | N80: 3008.346845 | O80: 6.229568414e-12 | P80: 90 | Q80: 301.5365551 | R80: 6.613942536e-13
A81: 16.8 | L81: 287.2796386 | N81: 3302.719052 | O81: 6.885807567e-12 | P81: 90 | Q81: 287.2796386 | R81: 6.512478293e-13
A82: 17.8 | L82: 273.4369679 | N82: 3583.044168 | O82: 7.53237905e-12 | P82: 90 | Q82: 273.4369679 | R82: 6.4204658e-13
A83: 18.8 | L83: 259.9773944 | N83: 3849.720653 | O83: 8.170192017e-12 | P83: 90 | Q83: 259.9773944 | R83: 6.335911007e-13
A84: 19.8 | L84: 246.8722216 | N84: 4103.11706 | O84: 8.799586915e-12 | P84: 90 | Q84: 246.8722216 | R84: 6.253409075e-13
A85: 20.8 | L85: 234.094941 | N85: 4343.574366 | O85: 9.421147414e-12 | P85: 90 | Q85: 234.094941 | R85: 6.178076121e-13
A86: 21.8 | L86: 221.6209991 | N86: 4571.408031 | O86: 1.003525814e-11 | P86: 90 | Q86: 221.6209991 | R86: 6.105463308e-13
A87: 22.8 | L87: 209.4275919 | N87: 4786.909854 | O87: 1.064249491e-11 | P87: 90 | Q87: 209.4275919 | R87: 6.039664424e-13
A88: 23.8 | L88: 197.4934832 | N88: 4990.349628 | O88: 1.124326941e-11 | P88: 90 | Q88: 197.4934832 | R88: 5.977049731e-13
A89: 24.8 | L89: 185.7988421 | N89: 5181.976625 | O89: 1.183800067e-11 | P89: 90 | Q89: 185.7988421 | R89: 5.918049931e-13
A90: 25.8 | L90: 174.3250992 | N90: 5362.020929 | O90: 1.242711275e-11 | P90: 90 | Q90: 174.3250992 | R90: 5.864734679e-13
A91: 26.8 | L91: 163.0548171 | N91: 5530.69463 | O91: 1.301105451e-11 | P91: 90 | Q91: 163.0548171 | R91: 5.814698557e-13
A92: 27.8 | L92: 151.9715743 | N92: 5688.192897 | O92: 1.35901697e-11 | P92: 90 | Q92: 151.9715743 | R92: 5.76824575e-13
A93: 28.8 | L93: 141.0598609 | N93: 5834.694944 | O93: 1.416482875e-11 | P93: 90 | Q93: 141.0598609 | R93: 5.72560634e-13
A94: 29.8 | L94: 130.3049842 | N94: 5970.364888 | O94: 1.473535169e-11 | P94: 90 | Q94: 130.3049842 | R94: 5.685542694e-13
A95: 30.8 | L95: 119.6929822 | N95: 6095.352528 | O95: 1.530208177e-11 | P95: 90 | Q95: 119.6929822 | R95: 5.649485956e-13
A96: 31.8 | L96: 109.2105459 | N96: 6209.794033 | O96: 1.586534382e-11 | P96: 90 | Q96: 109.2105459 | R96: 5.616271394e-13
A97: 32.8 | L97: 98.84494737 | N97: 6313.812559 | O97: 1.642544648e-11 | P97: 90 | Q97: 98.84494737 | R97: 5.586363909e-13
A98: 33.8 | L98: 88.58397365 | N98: 6407.518796 | O98: 1.698270453e-11 | P98: 90 | Q98: 88.58397365 | R98: 5.559273012e-13
A99: 34.8 | L99: 78.41586607 | N99: 6491.011456 | O99: 1.753740912e-11 | P99: 90 | Q99: 78.41586607 | R99: 5.535263469e-13
A100: 35.8 | L100: 68.32926332 | N100: 6564.377692 | O100: 1.808985807e-11 | P100: 90 | Q100: 68.32926332 | R100: 5.514268143e-13
A101: 36.8 | L101: 58.31314851 | N101: 6627.693474 | O101: 1.864036542e-11 | P101: 90 | Q101: 58.31314851 | R101: 5.496365188e-13
A102: 37.8 | L102: 48.35679934 | N102: 6681.023907 | O102: 1.918922922e-11 | P102: 90 | Q102: 48.35679934 | R102: 5.48136366e-13
A103: 38.8 | L103: 38.44974082 | N103: 6724.4235 | O103: 1.973672828e-11 | P103: 90 | Q103: 38.44974082 | R103: 5.469089883e-13
A104: 39.8 | L104: 28.58170035 | N104: 6757.936393 | O104: 2.028314434e-11 | P104: 90 | Q104: 28.58170035 | R104: 5.459697408e-13
A105: 40.8 | L105: 18.7425644 | N105: 6781.596534 | O105: 2.08287586e-11 | P105: 90 | Q105: 18.7425644 | R105: 5.45305042e-13
A106: 41.8 | L106: 8.922336724 | N106: 6795.427823 | O106: 2.137384731e-11 | P106: 90 | Q106: 8.922336724 | R106: 5.449183174e-13
A107: 42.8 | L107: 0.8888889919 | N107: 6799.444203 | O107: 2.191868657e-11 | P107: -90 | Q107: -0.8888889919 | R107: 5.447976806e-13
A108: 43.8 | L108: 10.6967557 | N108: 6793.650895 | O108: 2.246342616e-11 | P108: -90 | Q108: -10.6967557 | R108: 5.446358225e-13
A109: 44.8 | L109: 20.49386454 | N109: 6778.054278 | O109: 2.300786687e-11 | P109: -90 | Q109: -20.49386454 | R109: 5.442002961e-13
A110: 45.8 | L110: 30.27039539 | N110: 6752.670027 | O110: 2.355173644e-11 | P110: -90 | Q110: -30.27039539 | R110: 5.434925644e-13
A111: 46.8 | L111: 40.01661061 | N111: 6717.523595 | O111: 2.409476261e-11 | P111: -90 | Q111: -40.01661061 | R111: 5.425148535e-13
A112: 47.8 | L112: 49.72289362 | N112: 6672.650118 | O112: 2.463667608e-11 | P112: -90 | Q112: -49.72289362 | R112: 5.412670822e-13
A113: 48.8 | L113: 59.37978644 | N113: 6618.094273 | O113: 2.517721136e-11 | P113: -90 | Q113: -59.37978644 | R113: 5.397584687e-13
A114: 49.8 | L114: 68.97802593 | N114: 6553.9101 | O114: 2.571609465e-11 | P114: -90 | Q114: -68.97802593 | R114: 5.379657498e-13
A115: 50.8 | L115: 78.50857831 | N115: 6480.160788 | O115: 2.625305436e-11 | P115: -90 | Q115: -78.50857831 | R115: 5.359180356e-13
A116: 51.8 | L116: 87.96267193 | N116: 6396.918433 | O116: 2.678784764e-11 | P116: -90 | Q116: -87.96267193 | R116: 5.336221375e-13
A117: 52.8 | L117: 97.33182782 | N117: 6304.263761 | O117: 2.732021237e-11 | P117: -90 | Q117: -97.33182782 | R117: 5.310713652e-13
A118: 53.8 | L118: 106.607888 | N118: 6202.285814 | O118: 2.784992778e-11 | P118: -90 | Q118: -106.607888 | R118: 5.283154192e-13
A119: 54.8 | L119: 115.7830409 | N119: 6091.081626 | O119: 2.837676327e-11 | P119: -90 | Q119: -115.7830409 | R119: 5.253201702e-13
A120: 55.8 | L120: 124.8498451 | N120: 5970.755854 | O120: 2.890050745e-11 | P120: -90 | Q120: -124.8498451 | R120: 5.221137802e-13
A121: 56.8 | L121: 133.801249 | N121: 5841.420408 | O121: 2.942088969e-11 | P121: -90 | Q121: -133.801249 | R121: 5.186339646e-13
A122: 57.8 | L122: 142.6306083 | N122: 5703.194044 | O122: 2.993768283e-11 | P122: -90 | Q122: -142.6306083 | R122: 5.149108655e-13
A123: 58.8 | L123: 151.3317011 | N123: 5556.201953 | O123: 3.045071151e-11 | P123: -90 | Q123: -151.3317011 | R123: 5.111109364e-13
A124: 59.8 | L124: 159.8987389 | N124: 5400.575333 | O124: 3.095984509e-11 | P124: -90 | Q124: -159.8987389 | R124: 5.071274428e-13
A125: 60.8 | L125: 168.3263758 | N125: 5236.450948 | O125: 3.146481908e-11 | P125: -90 | Q125: -168.3263758 | R125: 5.027993515e-13
A126: 61.8 | L126: 176.6097143 | N126: 5063.970687 | O126: 3.196540429e-11 | P126: -90 | Q126: -176.6097143 | R126: 4.983582673e-13
A127: 62.8 | L127: 184.7443084 | N127: 4883.281107 | O127: 3.246151343e-11 | P127: -90 | Q127: -184.7443084 | R127: 4.937915035e-13
A128: 63.8 | L128: 192.7261641 | N128: 4694.532989 | O128: 3.29529838e-11 | P128: -90 | Q128: -192.7261641 | R128: 4.891495349e-13
A129: 64.8 | L129: 200.5517376 | N129: 4497.88088 | O129: 3.343968206e-11 | P129: -90 | Q129: -200.5517376 | R129: 4.841810847e-13
A130: 65.8 | L130: 208.2179307 | N130: 4293.482647 | O130: 3.392137161e-11 | P130: -90 | Q130: -208.2179307 | R130: 4.792132411e-13
A131: 66.8 | L131: 215.7220841 | N131: 4081.499037 | O131: 3.439798529e-11 | P131: -90 | Q131: -215.7220841 | R131: 4.739520456e-13
A132: 67.8 | L132: 223.0619691 | N132: 3862.093241 | O132: 3.486933357e-11 | P132: -90 | Q132: -223.0619691 | R132: 4.687761575e-13
A133: 68.8 | L133: 230.2357764 | N133: 3635.430464 | O133: 3.533542357e-11 | P133: -90 | Q133: -230.2357764 | R133: 4.633465714e-13
A134: 69.8 | L134: 237.2421046 | N134: 3401.67752 | O134: 3.579591172e-11 | P134: -90 | Q134: -237.2421046 | R134: 4.576789091e-13
A135: 70.8 | L135: 244.0799457 | N135: 3161.002423 | O135: 3.625088568e-11 | P135: -90 | Q135: -244.0799457 | R135: 4.522173082e-13
A136: 71.8 | L136: 250.7486709 | N136: 2913.574005 | O136: 3.670024274e-11 | P136: -90 | Q136: -250.7486709 | R136: 4.46444942e-13
A137: 72.8 | L137: 257.2480137 | N137: 2659.561546 | O137: 3.714367181e-11 | P137: -90 | Q137: -257.2480137 | R137: 4.404869739e-13
A138: 73.8 | L138: 263.5780532 | N138: 2399.134417 | O138: 3.758137054e-11 | P138: -90 | Q138: -263.5780532 | R138: 4.348649496e-13
A139: 74.8 | L139: 269.7391962 | N139: 2132.461743 | O139: 3.801331075e-11 | P139: -90 | Q139: -269.7391962 | R139: 4.28970066e-13
A140: 75.8 | L140: 275.7321592 | N140: 1859.712088 | O140: 3.84392201e-11 | P140: -90 | Q140: -275.7321592 | R140: 4.228034801e-13
A141: 76.8 | L141: 281.5579489 | N141: 1581.053153 | O141: 3.885882768e-11 | P141: -90 | Q141: -281.5579489 | R141: 4.165173426e-13
A142: 77.8 | L142: 287.2178439 | N142: 1296.651492 | O142: 3.927247262e-11 | P142: -90 | Q142: -287.2178439 | R142: 4.107341799e-13
A143: 78.8 | L143: 292.7133756 | N143: 1006.672256 | O143: 3.968021968e-11 | P143: -90 | Q143: -292.7133756 | R143: 4.047219771e-13
A144: 79.8 | L144: 298.0463085 | N144: 711.2789439 | O144: 4.008184104e-11 | P144: -90 | Q144: -298.0463085 | R144: 3.984831933e-13
A145: 80.8 | L145: 303.2186222 | N145: 410.6331817 | O145: 4.047711146e-11 | P145: -90 | Q145: -303.2186222 | R145: 3.920205869e-13
A146: 81.8 | L146: 307.8201653 | N146: 105.0313225 | O146: 4.086600334e-11 | P146: -90 | Q146: -307.8201653 | R146: 3.857445481e-13
A147: 82.8 | L147: 311.4426414 | N147: -204.6782027 | O147: 4.124821521e-11 | P147: -90 | Q147: -311.4426414 | R147: 3.784961525e-13

Sheet Grafy
B1: Trubka
F7: 0.05

Sheet Elementy
K1: Parametry palivových elementů
L4: Elementy: | N4: Trubka | R4: Kříž | V4: Hvězda | Z4: Kužel | AD4: Tyče | AH4: n-Kříž
L5: Vnější průměr Do(m) | N5: =Motor!C4 -> 0.2 | P5: Vnější průměr Do(m) | R5: =Motor!C4 -> 0.2 | T5: Vnější průměr Do(m) | V5: =Motor!C4 -> 0.2 | X5: Poč. průměr di | Z5: 0.2 | AB5: Průměr tyče | AD5: 0.06 | AF5: Vnější průměr Do(m) | AH5: =Motor!C4 -> 0.2
L6: Vnitřní průměr di | N6: 0.02 | P6: délka ramene b | R6: 0.06 | T6: Počet vrcholů n | V6: 6 | X6: Výška h | Z6: =IF(Y6=0,Z5/2/ATAN(Y7/180*PI()),Y6) -> 0.1236936723 | AB6: Počet tyčí | AF6: délka ramene b | AH6: 0.06
P7: šířka ramene a | R7: 0.02 | T7: Hrana s | V7: 0.02 | X7: Úhel a | Y7: 60 | Z7: =IF(Y7=0,ATAN(Z5/Z6/2)/PI()*180,Y7) -> 60 | AF7: šířka ramene a | AH7: 0.02
L8: Dmax | N8: =(N5-N6)/2 -> 0.09 | P8: Dmax | R8: =(R5-R7)/2 -> 0.09 | T8: Rozev.Theta | U8: =V8/180*PI() -> 2.094395102 | V8: 120 | X8: Dmax | Z8: =(Motor!C4-Z5)/2*COS(Z7*PI()/180) -> 0 | AB8: Dmax | AD8: =(Motor!C4-AD5)/2*COS(AD7*PI()/180) -> 0.07 | AF8: Dmax | AH8: =(AH5-AH7)/2 -> 0.09
T9: Rameno d | V9: =V7*(COS(U8/2-PI()/V6)+SIN(U8/2-PI()/V6)/TAN(PI()/V6)) -> 0.03464101615 | AF9: n-počet ramen | AH9: 6
L10: tryska (m) | N10: 0.04 | P10: tryska | R10: 0.07 | T10: tryska | V10: 0.04 | X10: tryska | Z10: 0.017 | AD10: 0.15 | AF10: tryska | AH10: 0.068
L11: Izolace | N11: ano | P11: Izolace | R11: ano | T11: poměr s/d | V11: =V7/V9 -> 0.5773502692 | X11: Izolace | Z11: ne | AB11: Izolace | AD11: ano | AF11: Izolace | AH11: ano
T12: odhad Theta | V12: =2.3*360/V6 -> 138
T13: xLim | V13: =V5/2-V9 -> 0.06535898385
T14: Izolace | V14: ano
L16: Elementy: | N16: Štěrbina | R16: Polotrubka
L17: Vnější průměr Do(m) | N17: =Motor!C4 -> 0.2 | P17: Vnější průměr Do(m) | R17: =Motor!C4 -> 0.2
L18: délka šterbiny | N18: 0.16 | P18: Vnitřní průměr di | R18: 0.04
L19: šířka šterbiny | N19: 0.015 | P19: Hloubka h | R19: 0.01
L20: Dlim | N20: =N17-N18 -> 0.04 | P20: Dmax | R20: =(R17-R18)/2 -> 0.08
L21: 1-jednost.;2-dvoust | N21: 1
L22: tryska | N22: 0.033 | P22: tryska | R22: 0.015
L23: Izolace | N23: ano | P23: Izolace | R23: ne

Sheet Povrchy
A1: Mapování povrchů hoření
A3: izolované čelo: | C3: ano | O3: 97.09492061
D4: Podle parametrů na listě "Elementy" | O4: 4729.82835
A6: x | B6: Trubka | C6: Kříž | D6: Hvězda | E6: Čelní | F6: Kužel | G6: n-Kříž | H6: Šterbina | I6: poloTrubka | J6: Tyče
A7: 0 | B7: =Trubka(A7) -> 0.06283185307 | C7: =Kriz(A7) -> 0.56 | D7: =Hvezda(A7) -> 0.24 | E7: =Celni(A7) -> 0.03141592654 | F7: =Kuzel(A7) -> 0.07255197457 | G7: =nKriz(A7) -> 0.7014359354 | H7: =sterb(A7) -> 0.3426606757 | I7: =polotrubka(A7) -> 0.002513274123 | J7: =tyce(A7) -> 1.884955592 | L7: 0
A8: 0.005 | B8: 0.09424777961 | C8: 0.5828318531 | D8: 0.2681908369 | E8: 0.03141592654 | F8: =Kuzel(A8) -> 0.07252767427 | G8: 0.7264016827 | H8: =sterb(A8) -> 0.3452657064 | I8: =polotrubka(A8) -> 0.002984513021 | J8: =tyce(A8) -> 1.570796327
A9: 0.01 | B9: 0.1256637061 | C9: 0.6056637061 | D9: 0.2963816738 | E9: 0.03141592654 | F9: =Kuzel(A9) -> 0.07245477335 | G9: 0.75136743 | H9: =sterb(A9) -> 0.3704612306 | I9: =polotrubka(A9) -> 0.003769911184 | J9: =tyce(A9) -> 1.256637061
A10: 0.015 | B10: 0.1570796327 | C10: 0.6284955592 | D10: 0.3245725108 | E10: 0.03141592654 | F10: =Kuzel(A10) -> 0.07233327184 | G10: 0.7763331773 | H10: =sterb(A10) -> 0.3945875121 | I10: =polotrubka(A10) -> 0.004869468613 | J10: 0.9424777961
A11: 0.02 | B11: =Trubka(A11) -> 0.1884955592 | C11: 0.6513274123 | D11: 0.3527633477 | E11: 0.03141592654 | F11: 0.07216316971 | G11: 0.8012989246 | H11: 0.417535848 | I11: =polotrubka(A11) -> 0.006283185307 | J11: 0.6283185307
A12: 0.025 | B12: 0.2199114858 | C12: 0.6741592654 | D12: 0.3809541846 | E12: 0.03141592654 | F12: 0.07194446698 | G12: 0.8262646719 | H12: 0.4391840941 | I12: 0.008011061267 | J12: 0.3141592654
A13: 0.03 | B13: 0.2513274123 | C13: 0.6969911184 | D13: 0.4091450215 | E13: 0.03141592654 | F13: 0.07167716363 | G13: 0.8512304192 | H13: 0.4593933179 | I13: 0.01005309649 | J13: 0
A14: 0.035 | B14: 0.2827433388 | C14: 0.7198229715 | D14: 0.4373400811 | E14: 0.03141592654 | F14: 0.07136125969 | G14: 0.8761961665 | H14: 0.4780032777 | I14: 0.01240929098 | J14: 0
A15: 0.04 | B15: 0.3141592654 | C15: 0.7426548246 | D15: 0.4662869628 | E15: 0.03141592654 | F15: 0.07099675513 | G15: 0.9011619138 | H15: 0.4948261712 | I15: 0.01507964474 | J15: 0
A16: 0.045 | B16: 0.3455751919 | C16: 0.7654866776 | D16: 0.4960971592 | E16: 0.03141592654 | F16: 0.07058364997 | G16: =nKriz(A16) -> 0.75 | H16: 0.3404408906 | I16: 0.01806415776 | J16: 0
A17: 0.05 | B17: 0.3769911184 | C17: 0.7883185307 | D17: 0.5264042289 | E17: 0.03141592654 | F17: =Kuzel(A17) -> 0.07012194419 | G17: 0.5 | H17: 0.3272613634 | I17: 0.02136283004
A18: 0.055 | B18: 0.408407045 | C18: 0.8111503838 | D18: 0.55701979 | E18: 0.03141592654 | F18: 0.06961163782 | G18: 0.25 | H18: 0.3122498999 | I18: 0.0249756616
A19: 0.06 | B19: 0.4398229715 | C19: 0.8339822369 | D19: 0.5878379141 | E19: 0.03141592654 | F19: 0.06905273083 | G19: 6.938893904e-16 | H19: 0.2951270913 | I19: 0.02890265241
A20: 0.065 | B20: 0.471238898 | C20: 0.8567745368 | D20: 0.6187949447 | E20: 0.03141592654 | F20: 0.06844522324 | G20: 0 | H20: 0.2754995463 | I20: 0.0331438025
A21: 0.07 | B21: 0.5026548246 | C21: 0.8793713044 | D21: 0.6498506017 | E21: 0.03141592654 | F21: 0.06778911504 | G21: 0 | H21: 0.2527844932 | I21: 0.03769911184
A22: 0.075 | B22: 0.5340707511 | C22: 0.9016630436 | D22: 0.6809783171 | E22: 0.03141592654 | F22: 0.06708440623 | G22: 0 | H22: 0.2260530911 | I22: 0.04256858046
A23: 0.08 | B23: 0.5654866776 | C23: 0.9235942859 | D23: 0 | E23: 0.03141592654 | F23: 0.06633109681 | G23: 0 | H23: =sterb(A23) -> 0.1936491673 | I23: 0.07049733915
A24: 0.085 | B24: 0.5969026042 | C24: 0.9451396054 | D24: 0 | E24: 0.03141592654 | F24: 0.06552918679 | G24: 0 | H24: 0.1519868415 | I24: 0.053231482
A25: 0.09 | B25: 0.6283185307 | C25: 0.9662907805 | D25: 0 | E25: 0.03141592654 | F25: 0.06467867616 | G25: 0 | H25: 0.08888194417 | I25: 0.04901920255
A26: 0.095 | B26: 0 | C26: 0.9870495838 | D26: 0 | E26: 0.03141592654 | F26: =Kuzel(A26) -> 0.06377956492 | G26: 0 | H26: =sterb(A26) -> 0 | I26: =polotrubka(A26) -> 0.046546385
A27: 0.1 | B27: 0 | C27: 1.007423585 | D27: 0 | E27: 0.03141592654 | F27: =Kuzel(A27) -> 0.06283185307 | G27: 0 | H27: =sterb(A27) -> 0 | I27: 0.04486194309
A28: 0.105 | B28: 0 | C28: 1.027423637 | D28: 0 | E28: 0.03141592654 | F28: 0.06183554062 | G28: 0 | H28: 0 | I28: 0.04362533413
A29: 0.11 | B29: 0 | C29: 1.047062351 | D29: 0 | E29: 0.03141592654 | F29: 0.06079062756 | G29: 0 | H29: 0 | I29: 0.04267419833
A30: 0.115 | B30: 0 | C30: 1.066353141 | D30: 0 | E30: 0.03141592654 | F30: 0.05969711389 | G30: 0 | H30: 0 | I30: 0.04191858098
A31: 0.12 | B31: 0 | C31: 0 | D31: 0 | E31: 0.03141592654 | F31: 0.05855499961 | G31: 0 | H31: 0 | I31: 0.04130368291
A32: 0.125 | B32: 0 | C32: 0 | D32: 0 | E32: 0.03141592654 | F32: 0.05736428473 | G32: 0 | H32: 0 | I32: 0.04079384132
A33: 0.13 | B33: 0 | C33: 0 | D33: 0 | E33: 0.03141592654 | F33: 0.05612496924 | G33: 0 | H33: 0 | I33: 0.04036468288
A34: 0.135 | B34: 0 | C34: 0 | D34: 0 | E34: 0.03141592654 | F34: 0.05483705314 | G34: 0 | H34: 0 | I34: 0.03999890696
A35: 0.14 | B35: 0 | C35: 0 | D35: 0 | E35: 0.03141592654 | F35: 0.05350053643 | G35: 0 | H35: 0 | I35: 0.03968385574
A36: 0.145 | B36: 0 | C36: 0 | D36: 0 | E36: 0.03141592654 | F36: 0.05211541912 | G36: 0 | H36: 0 | I36: 0.03941003562
A37: 0.15 | B37: 0 | C37: 0 | D37: 0 | E37: 0.03141592654 | F37: 0.0506817012 | G37: 0 | H37: 0 | I37: 0.03917017688
A38: 0.155 | B38: 0 | C38: 0 | D38: 0 | E38: 0.03141592654 | F38: 0.04919938267 | G38: 0 | H38: 0 | I38: 0.03895861369
A39: 0.16 | B39: 0 | C39: 0 | D39: 0 | E39: 0.03141592654 | F39: 0.04766846354 | G39: 0 | H39: 0 | I39: 0.03877086258
A40: 0.165 | B40: 0 | C40: 0 | D40: 0 | E40: 0.03141592654 | F40: 0.04608894379 | G40: 0 | H40: 0 | I40: 0.03860332831

Sheet f(rychl hoř)
A1: Vliv rychlosti hoření | E1: Trubka
E2: náměr (°) | F2: 45 | H2: dkr (m) | I2: 0.04
A4: konst a | B4: y výška | C4: x dálka | D4: rhmax | E4: thoř (s) | F4: Isp | G4: vsk,max (m/s) | H4: pmax (bar) | I4: stěna (mm)
A5: 2.9163e-05 | B5: 1214.045097 | C5: 8706.939659 | D5: 11.79357216 | E5: 12.6 | F5: 1694.826941 | G5: 420.2110725 | H5: 107.4433921 | I5: 9.05910525
A6: 2.9163e-05 | B6: 1214.045097 | C6: 8706.939659 | D6: 11.79357216 | E6: 12.6 | F6: 1694.826941 | G6: 420.2110725 | H6: 107.4433921 | I6: 9.05910525
A7: 2.9163e-05 | B7: 1214.045097 | C7: 8706.939659 | D7: 11.79357216 | E7: 12.6 | F7: 1694.826941 | G7: 420.2110725 | H7: 107.4433921 | I7: 9.05910525
A8: 2.9163e-05 | B8: 1214.045097 | C8: 8706.939659 | D8: 11.79357216 | E8: 12.6 | F8: 1694.826941 | G8: 420.2110725 | H8: 107.4433921 | I8: 9.05910525
A9: 2.8163e-05 | B9: 1169.639145 | C9: 8537.84508 | D9: 11.07231334 | E9: 13.2 | F9: 1640.116557 | G9: 417.5827065 | H9: 99.55465068 | I9: 8.550153308
A10: 2.9163e-05 | B10: 1214.045097 | C10: 8706.939659 | D10: 11.79357216 | E10: 12.6 | F10: 1694.826941 | G10: 420.2110725 | H10: 107.4433921 | I10: 9.05910525
A11: 3.0163e-05 | B11: 1230.173482 | C11: 8632.877005 | D11: 12.31170893 | E11: 11.8 | F11: 1637.837227 | G11: 420.798751 | H11: 110.1725287 | I11: 9.580978956
A12: 3.1163e-05 | B12: 1285.12766 | C12: 8781.078579 | D12: 12.961206 | E12: 11.2 | F12: 1642.392012 | G12: 422.4444054 | H12: 115.9134195 | I12: 10.11580465
A13: 3.2163e-05 | B13: 1384.832905 | C13: 9059.996828 | D13: 13.56947326 | E13: 10.6 | F13: 1703.010334 | G13: 424.6090953 | H13: 120.4734218 | I13: 10.66362189
A14: 3.3163e-05 | B14: 1472.166484 | C14: 9268.037061 | D14: 14.37119185 | E14: 10.2 | F14: 1682.494899 | G14: 426.2133048 | H14: 129.5181211 | I14: 11.22447924
A15: 3.4163e-05 | B15: 1477.966205 | C15: 9267.907035 | D15: 15.15930237 | E15: 9.8 | F15: 1727.039679 | G15: 428.3879957 | H15: 138.0784092 | I15: 11.79843392
A16: 3.5163e-05 | B16: 1495.938709 | C16: 9371.076984 | D16: 15.63151365 | E16: 9.2 | F16: 1731.17275 | G16: 429.3422338 | H16: 138.7605595 | I16: 12.38555151
A17: 3.6163e-05 | B17: 1557.046879 | C17: 9578.639432 | D17: 16.34385279 | E17: 8.8 | F17: 1645.633643 | G17: 429.6277321 | H17: 145.0967221 | I17: 12.98590578
A18: 3.7163e-05 | B18: 1534.506339 | C18: 9535.029125 | D18: 17.01944615 | E18: 8.4 | F18: 1731.775667 | G18: 431.9584661 | H18: 150.3778008 | I18: 13.59957845
A19: 3.8163e-05 | B19: 1611.758329 | C19: 9566.074196 | D19: 18.03270907 | E19: 8.2 | F19: 1734.729674 | G19: 433.7839381 | H19: 163.6427359 | I19: 14.22665902
A20: 3.9163e-05 | B20: 1714.86559 | C20: 9891.69138 | D20: 18.64263335 | E20: 7.8 | F20: 1691.170726 | G20: 434.253847 | H20: 166.9475596 | I20: 14.86724465

Sheet f(Dkr)
A1: Vliv průměru trysky | E1: Trubka
E2: náměr (°) | F2: 90 | H2: a | I2: 2.9163e-05
A4: dkr (m) | B4: y výška | C4: x dálka | D4: rhmax | E4: thoř (s) | F4: Isp | G4: vsk,max (m/s) | H4: pmax (bar) | I4: stěna (mm)
A5: 0.056 | B5: 6901.775978 | C5: 3.863933574e-11 | D5: 7.903568203 | E5: 18.6 | F5: 1518.242864 | G5: 429.4951314 | H5: 36.42420485 | I5: 3.02317514
A6: 0.054 | B6: 6979.076707 | C6: 3.992422192e-11 | D6: 8.239563602 | E6: 17.8 | F6: 1536.783837 | G6: 430.831859 | H6: 40.76220429 | I6: 3.39944474
A7: 0.053 | B7: 7012.697727 | C7: 4.038988665e-11 | D7: 8.416810523 | E7: 17.4 | F7: 1545.17122 | G7: 431.475616 | H7: 43.17572724 | I7: 3.611025829
A8: 0.051 | B8: 7039.934076 | C8: 4.090593869e-11 | D8: 8.791399556 | E8: 16.6 | F8: 1584.944869 | G8: 433.1182652 | H8: 48.56786743 | I8: 4.089631642
A9: 0.048 | B9: 7200.357249 | C9: 4.279832457e-11 | D9: 9.515211991 | E9: 15.6 | F9: 1614.446131 | G9: 436.0335677 | H9: 60.14715854 | I9: 4.979169518
A10: 0.045 | B10: 7253.338734 | C10: 4.4284862e-11 | D10: 10.22673987 | E10: 14.4 | F10: 1623.625191 | G10: 437.6682185 | H10: 73.09040376 | I10: 6.146140241
A11: 0.042 | B11: 7247.099049 | C11: 4.482665158e-11 | D11: 11.03252957 | E11: 13.2 | F11: 1671.793076 | G11: 439.1015702 | H11: 89.71843463 | I11: 7.709108235
A12: 0.039 | B12: 7331.66096 | C12: 4.626135818e-11 | D12: 12.12285347 | E12: 12.2 | F12: 1697.744259 | G12: 442.2322499 | H12: 115.745109 | I12: 9.854640296
A13: 0.036 | B13: 7311.639132 | C13: 4.753534027e-11 | D13: 13.20800207 | E13: 11 | F13: 1677.157535 | G13: 443.2335343 | H13: 145.9252386 | I13: 12.88938197
A14: 0.033 | B14: 7343.064295 | C14: 4.894820606e-11 | D14: 14.71730061 | E14: 10 | F14: 1745.029048 | G14: 445.8771257 | H14: 195.4938961 | I14: 17.3457434
A15: 0.03 | B15: 7169.025498 | C15: 4.934093518e-11 | D15: 16.23522872 | E15: 8.8 | F15: 1690.187651 | G15: 414.4214269 | H15: 254.8884145 | I15: 24.21670766
A16: 0.027 | B16: 5010.022441 | C16: 3.656762752e-11 | D16: 18.42393481 | E16: 7.8 | F16: 1737.752648 | G16: 304.3946515 | H16: 358.7511292 | I16: 35.54542161
A17: 0.024 | B17: 2140.432979 | C17: 1.652389081e-11 | D17: 21.178649 | E17: 6.8 | F17: 1775.739597 | G17: 193.1580664 | H17: 522.8169601 | I17: 56.19018305
A18: 0.021 | B18: 610.8174264 | C18: 5.170592055e-12 | D18: 24.72752863 | E18: 5.8 | F18: 1796.041425 | G18: 99.53071408 | H18: 794.6834263 | I18: 100.8058235
A19: 0.018 | B19: 63.46808656 | C19: 6.660164739e-13 | D19: 29.42693502 | E19: 4.8 | F19: 1784.221294 | G19: 29.15243199 | H19: 1271.809425 | I19: 241.184163
A20: 0.015 | B20: 0 | D20: 35.84930821 | E20: 3.8 | F20: 1937.767914 | G20: 0 | H20: 2168.404401 | I20: 7867.595228

Sheet f(namer)
A1: Vliv náměru | E1: Trubka
E2: Dkr(m) | F2: 0.04 | H2: a | I2: 2.9163e-05
A4: náměr ° | B4: y výška | C4: x dálka | D4: rhmax | E4: thoř (s) | F4: Isp | G4: vsk,max (m/s) | H4: pmax (bar) | I4: stěna (mm)
A5: 90 | B5: 6582.727139 | C5: 3.97278393e-11 | D5: 11.79357216 | E5: 12.6 | F5: 1700.634757 | G5: 424.0369422 | H5: 107.4433921 | I5: 9.05910525
A6: 85 | B6: 6454.534057 | C6: 2932.637348 | D6: 11.79357216 | E6: 12.6 | F6: 1700.550297 | G6: 423.9788642 | H6: 107.4433921 | I6: 9.05910525
A7: 80 | B7: 6093.178969 | C7: 5521.836369 | D7: 11.79357216 | E7: 12.6 | F7: 1700.301435 | G7: 423.8082803 | H7: 107.4433921 | I7: 9.05910525
A8: 75 | B8: 5516.104175 | C8: 7717.640839 | D8: 11.79357216 | E8: 12.6 | F8: 1699.877982 | G8: 423.5188546 | H8: 107.4433921 | I8: 9.05910525
A9: 70 | B9: 4839.31533 | C9: 9132.769969 | D9: 11.79357216 | E9: 12.6 | F9: 1699.330274 | G9: 423.1484118 | H9: 107.4433921 | I9: 9.05910525
A10: 65 | B10: 4073.757678 | C10: 10085.77518 | D10: 11.79357216 | E10: 12.6 | F10: 1698.636152 | G10: 422.6835012 | H10: 107.4433921 | I10: 9.05910525
A11: 60 | B11: 3219.474443 | C11: 10525.39525 | D11: 11.79357216 | E11: 12.6 | F11: 1697.754671 | G11: 422.0971611 | H11: 107.4433921 | I11: 9.05910525
A12: 55 | B12: 2424.997042 | C12: 10290.9532 | D12: 11.79357216 | E12: 12.6 | F12: 1696.784972 | G12: 421.4614676 | H12: 107.4433921 | I12: 9.05910525
A13: 50 | B13: 1769.758376 | C13: 9568.098566 | D13: 11.79357216 | E13: 12.6 | F13: 1695.818098 | G13: 420.8399008 | H13: 107.4433921 | I13: 9.05910525
A14: 45 | B14: 1214.045097 | C14: 8706.939659 | D14: 11.79357216 | E14: 12.6 | F14: 1694.826941 | G14: 420.2110725 | H14: 107.4433921 | I14: 9.05910525
A15: 40 | B15: 733.6134849 | C15: 7359.742481 | D15: 11.79357216 | E15: 12.6 | F15: 1693.764221 | G15: 419.5493496 | H15: 107.4433921 | I15: 9.05910525
A16: 35 | B16: 408.7345175 | C16: 5973.623877 | D16: 11.79357216 | E16: 12.6 | F16: 1692.82734 | G16: 418.9674991 | H16: 107.4433921 | I16: 9.05910525
A17: 30 | B17: 188.6274906 | C17: 4373.841462 | D17: 11.79357216 | E17: 12.6 | F17: 1691.991993 | G17: 418.4530004 | H17: 107.4433921 | I17: 9.05910525
A18: 25 | B18: 55.04387371 | C18: 2867.948886 | D18: 11.79357216 | E18: 12.6 | F18: 1691.240353 | G18: 409.6038585 | H18: 107.4433921 | I18: 9.05910525
A19: 20 | B19: 7.719216729 | C19: 606.4021151 | D19: 11.79357216 | E19: 12.6 | F19: 1690.765935 | G19: 182.2904208 | H19: 107.4433921 | I19: 9.05910525
A20: 15 | B20: 2.122466085 | C20: 180.2210913 | D20: 11.79357216 | E20: 12.6 | F20: 1690.74085 | G20: 94.88943369 | H20: 107.4433921 | I20: 9.05910525

Sheet f(Č90)
A1: Vliv průměru trysky | E1: Čelní
E2: náměr (°) | F2: 90 | H2: a | I2: 2.9163e-05
A4: dkr (m) | B4: y výška | C4: x dálka | D4: rhmax | E4: thoř (s) | F4: Isp | G4: vsk,max (m/s) | H4: pmax (bar) | I4: stěna (mm)
A5: 0.007 | B5: 628.4787625 | C5: 2.566054502e-11 | D5: 15.72935549 | E5: 63 | F5: 1853.082488 | G5: 42.53462582 | H5: 233.9886196 | I5: 20.83592467
A6: 0.0076 | B6: 3536.522596 | C6: 1.193581305e-09 | D6: 14.28102327 | E6: 70 | F6: 1851.879179 | G6: 130.8331341 | H6: 180.2237532 | I6: 15.67315546
A7: 0.0082 | B7: 8288.596037 | C7: 8.963264367e-09 | D7: 13.06162216 | E7: 76 | F7: 1826.326665 | G7: 228.0474939 | H7: 141.5954504 | I7: 12.11043234
A8: 0.0088 | B8: 14338.04945 | C8: 1.987065895e-08 | D8: 12.02190865 | E8: 83 | F8: 1825.339968 | G8: 327.3372294 | H8: 113.1587045 | I8: 9.56200187
A9: 0.0094 | B9: 18127.44025 | C9: 2.321338133e-08 | D9: 11.12568353 | E9: 89 | F9: 1800.634376 | G9: 356.215288 | H9: 91.78059793 | I9: 7.686111071
A10: 0.01 | B10: 21274.78992 | C10: 3.549706104e-08 | D10: 10.34576463 | E10: 96 | F10: 1795.856534 | G10: 367.7257582 | H10: 75.41235121 | I10: 6.272372832
A11: 0.0106 | B11: 23823.28159 | C11: 3.781271439e-08 | D11: 9.661359538 | E11: 103 | F11: 1787.959229 | G11: 376.5644864 | H11: 62.67674025 | I11: 5.185631669
A12: 0.0112 | B12: 25853.19273 | C12: 4.483204954e-08 | D12: 9.05630308 | E12: 110 | F12: 1776.907097 | G12: 383.4388225 | H12: 52.62532494 | I12: 4.33598698
A13: 0.0118 | B13: 27372.46582 | C13: 7.083715753e-08 | D13: 8.51784553 | E13: 117 | F13: 1762.584355 | G13: 388.43 | H13: 44.59083786 | I13: 3.661876498
A14: 0.0124 | B14: 28343.1299 | C14: 6.87841255e-08 | D14: 8.035801235 | E14: 124 | F14: 1744.680693 | G14: 391.4222836 | H14: 38.09480046 | I14: 3.120088402
A15: 0.013 | B15: 28731.33114 | C15: 6.802597976e-08 | D15: 7.601938829 | E15: 131 | F15: 1722.963834 | G15: 392.3117832 | H15: 32.78819834 | I15: 2.679637154
A16: 0.0136 | B16: 28747.81058 | C16: 5.688530175e-08 | D16: 7.209536887 | E16: 138 | F16: 1698.84318 | G16: 391.8338746 | H16: 28.41249936 | I16: 2.317885807
A17: 0.0142 | B17: 28467.94907 | C17: 4.883325744e-08 | D17: 6.853055061 | E17: 145 | F17: 1672.8497 | G17: 390.261493 | H17: 24.77350296 | I17: 2.018021799
A18: 0.0148 | B18: 27924.03716 | C18: 4.524204743e-08 | D18: 6.527887218 | E18: 152 | F18: 1645.283452 | G18: 387.7438484 | H18: 21.72346503 | I18: 1.767373583
A19: 0.0154 | B19: 27149.64599 | C19: 3.886414285e-08 | D19: 6.230173769 | E19: 159 | F19: 1616.395873 | G19: 384.4056781 | H19: 19.1486696 | I19: 1.556263832
A20: 0.016 | B20: 26575.27094 | C20: 3.977476472e-08 | D20: 5.956657292 | E20: 167 | F20: 1597.532742 | G20: 382.0248081 | H20: 16.96065173 | I20: 1.377213218

Sheet f(K90)
A1: Vliv průměru trysky | E1: Kužel
B2: poč.pr. Jako element | E2: náměr (°) | F2: 90 | G2: úhel kužele 60° | H2: a | I2: 2.9163e-05
A4: dkr (m) | B4: y výška | C4: x dálka | D4: rhmax | E4: thoř (s) | F4: Isp | G4: vsk,max (m/s) | H4: pmax (bar) | I4: stěna (mm)
A5: 0.015 | B5: 23869.27513 | C5: 3.139614718e-08 | D5: 10.49619304 | E5: 109 | F5: 1742.20333 | G5: 289.7350905 | H5: 78.41268174 | I5: 6.545775855
A6: 0.016 | B6: 31654.35903 | C6: 2.579461768e-08 | D6: 9.731107084 | E6: 118 | F6: 1740.191656 | G6: 368.6638304 | H6: 63.90718154 | I6: 5.300974915
A7: 0.017 | B7: 36615.80929 | C7: 3.961514152e-08 | D7: 9.063151212 | E7: 126 | F7: 1723.791263 | G7: 392.5882585 | H7: 52.73294513 | I7: 4.352725086
A8: 0.0175 | B8: 39069.66346 | C8: 4.613217667e-08 | D8: 8.760129034 | E8: 131 | F8: 1725.666775 | G8: 402.4471709 | H8: 48.10237954 | I8: 3.962466249
A9: 0.018 | B9: 40791.88003 | C9: 5.249210787e-08 | D9: 8.475331393 | E9: 135 | F9: 1715.639056 | G9: 409.1207806 | H9: 43.9918744 | I9: 3.617350228
A10: 0.0185 | B10: 42736.78071 | C10: 6.420159326e-08 | D10: 8.207202423 | E10: 140 | F10: 1715.250335 | G10: 416.7914023 | H10: 40.33096053 | I10: 3.311016747
A11: 0.019 | B11: 43940.1917 | C11: 7.576448154e-08 | D11: 7.95435622 | E11: 144 | F11: 1703.497073 | G11: 421.3929556 | H11: 37.06026679 | I11: 3.038157467
A12: 0.0195 | B12: 45364.27542 | C12: 1.018238989e-07 | D12: 7.715554434 | E12: 149 | F12: 1700.674627 | G12: 427.0294345 | H12: 34.12954062 | I12: 2.794316947
A13: 0.02 | B13: 46000.6958 | C13: 1.375673424e-07 | D13: 7.489687293 | E13: 153 | F13: 1686.910091 | G13: 429.4200288 | H13: 31.49606097 | I13: 2.575735879
A14: 0.0205 | B14: 46811.82374 | C14: 1.82680032e-07 | D14: 7.275757465 | E14: 158 | F14: 1681.286997 | G14: 432.6932109 | H14: 29.12335831 | I14: 2.379226659
A15: 0.021 | B15: 46757.39801 | C15: 2.817298656e-07 | D15: 7.072866286 | E15: 162 | F15: 1664.969654 | G15: 432.4122732 | H15: 26.98017666 | I15: 2.202073913
A16: 0.022 | B16: 45791.87871 | C16: 9.384227385e-07 | D16: 6.697029313 | E16: 171 | F16: 1635.884548 | G16: 428.8361959 | H16: 23.27849666 | I16: 1.896872517
A17: 0.023 | B17: 42736.32339 | C17: 9.640350996e-06 | D17: 6.356550669 | E17: 181 | F17: 1603.602477 | G17: 417.756553 | H17: 20.21667971 | I17: 1.645167663
A18: 0.024 | B18: 34219.47562 | C18: 0.02801495599 | D18: 6.046777565 | E18: 190 | F18: 1540.846278 | G18: 387.1342891 | H18: 17.66313892 | I18: 1.435758632
A19: 0.025 | B19: 6733.275846 | C19: 2.80027647e-06 | D19: 5.763829963 | E19: 199 | F19: 1373.503866 | G19: 161.5356761 | H19: 15.51732961 | I19: 1.260145958
A20: 0.026 | B20: 5153.227792 | C20: 1.643868145e-08 | D20: 5.504447635 | E20: 209 | F20: 1295.489296 | G20: 139.5735619 | H20: 13.7015568 | I20: 1.111799634

Sheet f(Dkr) (90)
A1: Vliv průměru trysky | E1: Trubka
E2: náměr (°) | F2: 90 | H2: a | I2: 2.9163e-05
A4: dkr (m) | B4: y výška | C4: x dálka | D4: rhmax | E4: thoř (s) | F4: Isp | G4: vsk,max (m/s) | H4: pmax (bar) | I4: stěna (mm)
A5: 0.056 | B5: 6901.775978 | C5: 3.863933574e-11 | D5: 7.903568203 | E5: 18.6 | F5: 1518.242864 | G5: 429.4951314 | H5: 36.42420485 | I5: 3.02317514
A6: 0.054 | B6: 6979.076707 | C6: 3.992422192e-11 | D6: 8.239563602 | E6: 17.8 | F6: 1536.783837 | G6: 430.831859 | H6: 40.76220429 | I6: 3.39944474
A7: 0.053 | B7: 7012.697727 | C7: 4.038988665e-11 | D7: 8.416810523 | E7: 17.4 | F7: 1545.17122 | G7: 431.475616 | H7: 43.17572724 | I7: 3.611025829
A8: 0.051 | B8: 7039.934076 | C8: 4.090593869e-11 | D8: 8.791399556 | E8: 16.6 | F8: 1584.944869 | G8: 433.1182652 | H8: 48.56786743 | I8: 4.089631642
A9: 0.048 | B9: 7200.357249 | C9: 4.279832457e-11 | D9: 9.515211991 | E9: 15.6 | F9: 1614.446131 | G9: 436.0335677 | H9: 60.14715854 | I9: 4.979169518
A10: 0.045 | B10: 7253.338734 | C10: 4.4284862e-11 | D10: 10.22673987 | E10: 14.4 | F10: 1623.625191 | G10: 437.6682185 | H10: 73.09040376 | I10: 6.146140241
A11: 0.042 | B11: 7247.099049 | C11: 4.482665158e-11 | D11: 11.03252957 | E11: 13.2 | F11: 1671.793076 | G11: 439.1015702 | H11: 89.71843463 | I11: 7.709108235
A12: 0.039 | B12: 7331.66096 | C12: 4.626135818e-11 | D12: 12.12285347 | E12: 12.2 | F12: 1697.744259 | G12: 442.2322499 | H12: 115.745109 | I12: 9.854640296
A13: 0.036 | B13: 7311.639132 | C13: 4.753534027e-11 | D13: 13.20800207 | E13: 11 | F13: 1677.157535 | G13: 443.2335343 | H13: 145.9252386 | I13: 12.88938197
A14: 0.033 | B14: 7343.064295 | C14: 4.894820606e-11 | D14: 14.71730061 | E14: 10 | F14: 1745.029048 | G14: 445.8771257 | H14: 195.4938961 | I14: 17.3457434
A15: 0.03 | B15: 7169.025498 | C15: 4.934093518e-11 | D15: 16.23522872 | E15: 8.8 | F15: 1690.187651 | G15: 414.4214269 | H15: 254.8884145 | I15: 24.21670766
A16: 0.027 | B16: 5010.022441 | C16: 3.656762752e-11 | D16: 18.42393481 | E16: 7.8 | F16: 1737.752648 | G16: 304.3946515 | H16: 358.7511292 | I16: 35.54542161
A17: 0.024 | B17: 2140.432979 | C17: 1.652389081e-11 | D17: 21.178649 | E17: 6.8 | F17: 1775.739597 | G17: 193.1580664 | H17: 522.8169601 | I17: 56.19018305
A18: 0.021 | B18: 610.8174264 | C18: 5.170592055e-12 | D18: 24.72752863 | E18: 5.8 | F18: 1796.041425 | G18: 99.53071408 | H18: 794.6834263 | I18: 100.8058235
A19: 0.018 | B19: 63.46808656 | C19: 6.660164739e-13 | D19: 29.42693502 | E19: 4.8 | F19: 1784.221294 | G19: 29.15243199 | H19: 1271.809425 | I19: 241.184163
A20: 0.015 | B20: 0 | D20: 35.84930821 | E20: 3.8 | F20: 1937.767914 | G20: 0 | H20: 2168.404401 | I20: 7867.595228

Sheet f(Dkr) (33)
A1: Vliv průměru trysky | E1: Trubka
E2: náměr (°) | F2: 33 | H2: a | I2: 2.9163e-05
A4: dkr (m) | B4: y výška | C4: x dálka | D4: rhmax | E4: thoř (s) | F4: Isp | G4: vsk,max (m/s) | H4: pmax (bar) | I4: stěna (mm)
A5: 0.056 | B5: 1604.107861 | C5: 9184.797961 | D5: 7.903568203 | E5: 18.6 | F5: 1488.033746 | G5: 422.5722853 | H5: 36.42420485 | I5: 3.02317514
A6: 0.054 | B6: 1613.355831 | C6: 9254.776649 | D6: 8.239563602 | E6: 17.8 | F6: 1533.30896 | G6: 424.198808 | H6: 40.76220429 | I6: 3.39944474
A7: 0.053 | B7: 1620.284921 | C7: 9318.759786 | D7: 8.416810523 | E7: 17.4 | F7: 1542.436794 | G7: 425.0061557 | H7: 43.17572724 | I7: 3.611025829
A8: 0.051 | B8: 1623.544632 | C8: 9623.717593 | D8: 8.791399556 | E8: 16.6 | F8: 1559.093221 | G8: 426.5856601 | H8: 48.56786743 | I8: 4.089631642
A9: 0.048 | B9: 1651.693053 | C9: 9837.360668 | D9: 9.515211991 | E9: 15.6 | F9: 1604.672333 | G9: 430.2224358 | H9: 60.14715854 | I9: 4.979169518
A10: 0.045 | B10: 1648.595713 | C10: 9987.734082 | D10: 10.22673987 | E10: 14.4 | F10: 1615.37754 | G10: 432.5429338 | H10: 73.09040376 | I10: 6.146140241
A11: 0.042 | B11: 1650.478451 | C11: 10288.75281 | D11: 11.03252957 | E11: 13.2 | F11: 1616.501044 | G11: 434.7706917 | H11: 89.71843463 | I11: 7.709108235
A12: 0.039 | B12: 1668.252988 | C12: 10606.2297 | D12: 12.12285347 | E12: 12.2 | F12: 1692.116922 | G12: 438.5083228 | H12: 115.745109 | I12: 9.854640296
A13: 0.036 | B13: 1655.722821 | C13: 10636.31748 | D13: 13.20800207 | E13: 11 | F13: 1673.138858 | G13: 440.5105752 | H13: 145.9252386 | I13: 12.88938197
A14: 0.033 | B14: 1660.325817 | C14: 10933.65134 | D14: 14.7173006 | E14: 10 | F14: 1742.048142 | G14: 444.1295763 | H14: 195.4938961 | I14: 17.3457434
A15: 0.03 | B15: 1629.221076 | C15: 11121.08328 | D15: 16.23522872 | E15: 8.8 | F15: 1777.65947 | G15: 437.6404034 | H15: 254.8884145 | I15: 24.21670766
A16: 0.027 | B16: 1174.058305 | C16: 8920.246878 | D16: 18.42393481 | E16: 7.8 | F16: 1736.731481 | G16: 325.0307689 | H16: 358.7511292 | I16: 35.54542161
A17: 0.024 | B17: 464.8344583 | C17: 3910.155487 | D17: 21.178649 | E17: 6.8 | F17: 1775.23087 | G17: 209.8581805 | H17: 522.8169601 | I17: 56.19018305
A18: 0.021 | B18: 112.9879796 | C18: 1057.814974 | D18: 24.72752863 | E18: 5.8 | F18: 1795.855749 | G18: 110.3747818 | H18: 794.6834263 | I18: 100.8058235
A19: 0.018 | B19: 5.577943031 | C19: 92.59003178 | D19: 29.42693502 | E19: 4.8 | F19: 1784.193591 | G19: 33.84161444 | H19: 1271.809425 | I19: 241.184163
A20: 0.015 | B20: 0 | D20: 35.84930821 | E20: 3.8 | F20: 1937.767914 | G20: 0 | H20: 2168.404401 | I20: 7867.595228

Sheet Vztahy
B1: Výpočet rakety
B2: Základní vztahy pro výpočet raketového motoru.
B3: Tah raketového motoru P (v jednotkách N, SI):
B5: kde G je vteřinové průtočné množství pohonných látek, w je výtoková rychlost a pa tlak expandujících plynů ve výstupním průřezu trysky Sa a pH je atmosférický tlak ve výšce H. Měrný tah (specifický impuls) Isp(v jednotkách N.s/kg =m/s): udává, jak velká část tahu raketového motoru se získá z1 kg pohonných látek, spálených v motoru za 1 s,
B8: kde wef je efektivní výtoková rychlost ve výšce H. Specifický impuls je tedy mírou efektivní výtokové rychlosti plynů z motoru. Největší je ve vakuu a nižší na hladině moře. Výtoková rychlost plynů z trysky
B14: kde k je adiabatická konstanta, R - univerzální plynová konstanta 8,3145, Mv - molekulová hmotnost zplodin hoření, p0 a pa jsou tlaky ve spalovací komoře a na výstupu z trysky a T0 je teplota hoření. Je vidět, že w je tím větší, čím je větší Isp a p0 nebo čím je menší Mv. Výtoková rychlost je pro daný poměr výstupního a kritického průřezu trysky konstantní po celou dobu činnosti v důsledku toho, že ač se tlaky mění, poměr pa/p0 zůstává konstantní. Čím větší poměr průřezů, tím větší výtoková rychlost.
B29: Maximální rychlost proudění se dosáhne, podaří-li se proměnit veškerou tepelnou energii v kinetickou energii plynu. Tj. po expanzi bude H = 0, resp. T = 0. Tudíž
B34: a0 je rychlost zvuku v plynu ve spalovací komoře. Maximální rychlost wmax závisí jen na počáteční teplotě T0, nezáleží na počátečním tlaku p0 (ve spalovací komoře). I když by se zdálo, že s růstem p0 poroste wmax, není tomu tak. Srůstem p0 roste totiž i r0 takže zvýšený tlak p0 udělí stejnou wmax plynu s větší r0. wmax odpovídá pa = 0 a tudíž také pa/p0 = 0, expanzi do vakua.
B36: Závislost parametrů plynu na místní rychlosti proudění
E38: tj. s rostoucí rychlostí klesá teplota plynu.
B45: Místní rychlost zvuku
B48: Kritická výtoková rychlost
B51: Kritické parametry
B54: Průtočné množství G (kg/s)
B57: Je to maximální průtok při dosažení kritického proudění v ústí trysky
B72: Dále se zavádí ještě parametr b
B76: Parametr β má rozměr měrného tahu[N.s/kg = m/s] a nazývá se komplexem parametrů raketového motoru nebo charakteristickou rychlostí. Parametr Bk závisí na složení spalin.
B80: β závisí pouze na vlastnostech pohonných látek (u chemických pohonných látek je β mezi1500 – 2000 N.s/kg). Parametr β se udává v tabulce vlastností pohonných látek. Známe-li β,můžeme nalézt Skr, nutnou k průchodu množství plynů G[kg/s] při tlaku p0 [kg/s]. Při zvětšení průtoku pohonných látek G motorem při konstantní Skr znamená zvětšení p0 ve spalovací komoře. Je to dáno tím, že rychlost v kritickém průřezu nezávisí na průtoku pohonné látky a při stále teplotě T0 se nemění. Dojde-li ke zvětšení G, zvětší se i hustota ρ pohybujícího se plynu. Při konstantní teplotě se tak hustota plynu může zvětšit pouze zvýšením tlaku v komoře
B81: Plocha výstupního průřezu trysky (index a) Sa
B83: Výtoková rychlost
F86: (??)
B97: Všechny vztahy jsou totožné, jsou odvozeny z rovnice kontinuity a adiabatických vztahů. Rozšíření trysky závisí při konstantním k jen na poměru pa/p0. (tento vztah platí pro libovolný průřez Sx, dosazený za Sa. Tento poměr bývá 15 až 400. Rychlost a teplota v libovolném průřezu trysky jsou závislé na rozměrech a zákonu změny Sx podél délky trysky x. Tato rovnice platí jak pro podzvukovou, tak pro nadzvukovou část trysky.
B98: Poznámka: aby vůbec došlo k nadzvukovému proudění, musí být wa>wkr, tj.
B103: Tepelná účinnost raketového motoru. Maximální účinnosti by raketový motor dosáhl tehdy, je-li dosaženo výtokové rychlosti wmax ,tj. úplné přeměny celkové entalpie v kinetickou energii plynů.
B107: Zvýšením p0 při konstantním pa se zvýší ηt a tím i wa. Roste i měrný tak motoru. Při daném tahu motoru můžeme snížit G, tudíž i rozměry motoru a tím se zmenší i tepelné ztráty motoru. Zvýšením p0 je možné zmenšit objem komory, aniž se zmenší doba prodlevy τ plynu v komoře. Celkově lze říci, že zvýšení p0 zlepšuje charakteristiky raketového motoru.
B108: Účinnost využití paliva:
B113: Je-li V0 objem spalovací komory, pak lze zavést charakteristickou délku spalovací komory poměrem L≈ V0/Skr. Obvykle mívá parametr L hodnoty v rozmezí 0,6 – 1,5 m. Je-li dále Vvt objem, vzniklý spálením G, tj. Vvt = GRT0/p0, potom doba prodlevy plynu v komoře je τ = V0/Vvt = V0p0/GRT0 . Volba parametru τ určuje objem spalovací komory. Nicméně přesné určení rozměrů spalovací komory plyne z analýzy procesů hoření a plynové dynamiky ve spalovací komoře.
B114: Tah raketového motoru: | H114: pH je okolní tlak v dané výšce
B116: Konická a zvonovitá tryska
B118: U konické trysky se při tvorbě tahu uplatní pouze axiální složky průtoku hmoty a výtokové rychlosti. Je-li úhel rozevření trysky a, pak
B121: Nejvýhodnější je úhel rozevření a = 15°. Délka trysky Ld je pak úměrná rozdílu průměrů
B125: Pro zkrácení trysky (a tedy i snížení její hmotnosti) se používá zvonovitý tvar trysky, která se nejdříve za kritickým průměrem nejdříve rozšiřuje s úhlem 20°-50° což vede k větší expanzi a u ústí se tok narovnává v úhlu 2°-5°. Tím se délka zvonovité trysky snižuje na 70-80% délky trysky pouze konické.
B126: Pokud je pa > pH mluvíme o neúplné expanzi; plyn vytékající z trysky se při přebytečném tlaku pa rozpíná a mísí s vnějším prostředím. Rychlost se dále nezvětšuje, protože se tvoří víry.
B127: Pokud je pa < pH Za hranicemi trysky se tok zpomaluje a rychlost se zmenšuje na podzvukovou. Přitom vznikají rázové vlny, které srůstem pH se přibližují k trysce, případně do ní vstupují. Vzniká pak odtrhávání toku od stěn a tvoří se víry. Maximálního tahu je dosaženo, pokud pa = pH.
B142: Rychlost hoření prachu v závislosti na pracovním tlaku v komoře se řídí buď lineárním nebo exponenciálním zákonem hoření:
B143: rh = a +b.p (lineární zákon), rh = a.pn (exponenciální zákon), a, b, Ba n jsou empirické konstanty. Také se zavádí teplotní citlivost E na počáteční teplotu elementu TPL. Pak je exponenciální zákon ve tvaru
B144: rh = a.exp[E.(t - tokolí)]pn E bývá 0,002 až 0,008; n 0,2 až 0,6. Někdy se rychlost hoření vyjadřuje pomocí standardní rychlosti hoření (při 70 bar; 7MPa) r = r7.(p/7)n (pokud tlak v MPa).
B145: Jelikož měrná hmotnost prachu je mnohem větší než měrná hmotnost vzniklých spalin a s použitím exponenciálního zákona závislosti rychlosti hoření na tlaku ve spalovací komoře dostaneme závislost tlaku ve spalovací komoře na povrchu hoření TPH ve stacionárním případě ve tvaru:
B150: Kde F = Sh/Skr poměr mezi hořícím povrchem a kritickým průřezem trysky se nazývá zahrazením. rP je hustota elementu. Analýza stability hoření TPH ukazuje, že stabilní hoření nastává pro TPH s n < 1, kdy se tlakové fluktuace zmenšují. Naopak u TPH s n > 1 se odchylky tlaku od stacionární hodnoty zvyšují a tak motor buď přestane hořet, nebo exploduje. Většina TPL, které se používají, mají n = 0,2÷0,8.
B171: V leteckých startovacích raketách je používáno palivo NRDC:
B172: Pikrát Amonný .................. 45%
B173: Dusičnan Sodný ................. 45%
B174: Pryskyřičnaté pojivo ......... 10%
B176: Také se používalo palivo GALCIT, které obsahuje:
B177: KClO4 (chloristan draselný)........... 75%
B178: Přírodní asfalt ............................... 25%
B180: Obě tyto hmoty dosahují výtokové rychlosti okolo 1800m/s, však pro některé své vlastnosti se nehodí pro bojové rakety.
B182: Sovětský raketový kordit:
B183: Nitrocelulóza ..................... 56,5% (obsah dusíku 12,2%)
B184: Nitroglycerin ..................... 28%
B185: DNT ................................... 12%
B186: Centralit ............................ 4,5%
B187: Tento kordit dosahuje výtokové rychlosti okolo 2000m/s.
B189: Americký raketový balsit:
B190: Nitrocelulóza .....................51,5% (obsah dusíku 13,35%)
B191: Nitroglycerin .....................43,5%
B192: Centralit ............................1,3%
B193: Dietylftalát ........................3,25%
B194: Síran draselný ...................1,25%
B195: Saze ....................................0,2%
B196: Dosahuje výtokové rychlosti 2200 m/s (vyšší výtokové rychlosti se dosáhlo na úkor jiných vlastností)
B198: Německý diglykolý raketový prach:
B199: Nitrocelulóza .....................61,5% (obsah dusíku 12,6%)
B200: Diglykol .............................35%
B201: Difenyluretan ....................2,10%
B202: Etylfenyluretan .................1,40%
B203: Dosahuje výtokové rychlosti okolo 2000 m/s.
B204: Všeobecně nutno zdůraznit, že koloidní hmoty zůstávají svými vlastnostmi za pohonnými hmotami složenými., a proto se od jejich používání postupně upouští.
B206: Amatérská směs:
B207: KNO3……………………………….. 74,5 %
B208: Cukr ………………………………… 25,5 %
B210: NH4NO3……………………………….. 85-90 %
B211: elastomér ……………………………… 25,5 %
B212: Rychlost hoření 0,096 cm/s at 6,8 bar a 0,016 cm/s at 20,6 bar (?). Teplota hoření je cca. 1800K a ISP=180.
B214: KNO3……………………………….. 72 %
B215: Dřevěné uhlí .…………………… 24 %
B216: Síra ………………………………… 4 %
B217: The burning rate of this rocket fuel depends much less on pressure than that of black powder. This widens the accetable limits of the ratio nozzle area/fuel surface area.
B219: Space Shuttle Boosters propellant
B220: Aluminum powder...................................16
B221: Ammonium perchlorate...........................69.9
B222: Fe2O3 catalyst...........................................0.07
B223: Rubber based binder of polybutadiene acrylic acidacrylonitrile.....12.04
B224: Epoxy curing agent...................................1.96
B226: ESTES C-class rocket engine propellant
B227: KNO3.........................................71.79
B228: Síra............................................13.45
B229: Černé uhlí..................................13.81
B230: Dextrin........................................0.95
B232: Propellant 1
B233: 20% R20LM HTPB (Low molecular weight HTPB)
B234: 20% Magnesium powder(-650 mesh)
B235: 60% Ammonium Nitrate powder
B236: (Curing ratio = 0.19) Rubinate M MDI Curing Agent
B237: Burn rate coefficient = 0.0061 (? inch/sec)
B238: Burn rate exponent = 0.507
B240: Propellant 2
B241: 19% R20LM HTPB (Low molecular weight HTPB)
B242: 16% Aluminum powder (-400 mesh or 20 micron)
B243: 65% Ammonium Perchlorate (200 micron)
B244: (Curing ratio = 0.19) Mondur MR MDI Curing Agent
B245: Burn rate coefficient = 0.0374
B246: Burn rate exponent = 0.28
B248: Note: Curing agent ratio = (Wt. of curing agent)/(Wt. of binder) = (0.8) * (Equivalent weight of curing agent)/(Equivalent weight of binder)
B249: This assumes 80% linkage for a flexible propellant. Other curing agents can be used, but an adjustment to the curing agent ratio will have to be made.
B250: http://homepages.sover.net/~sbjohn/chemistry/chemx/fuels.html
B251: https://www.nakka-rocketry.net/anexp.html
B252: http://www.wydawnictwa.ipo.waw.pl/cejem/vol-9-4-2012/Shekhar.pdf
B253: http://ijseas.com/volume2/v2i4/ijseas20160451.pdf
B254: http://www.transformacni-technologie.cz/40.html
B256: Orientační rychlosti hoření raketového paliva:
B257: Tlak (bar) | C257: Rychlost (mm/s)
B258: 40 | C258: 2023-08-05
B259: 70 | C259: 2023-12-07
B260: 100 | C260: 2014-09-01
B262: Vyjádření pomocí Machova čísla M
B263: Rychlost zvuku a a Machovo číslo M:
B268: Poměr průřezu trysky ke kritickému
B274: Tah motoru:
B277: Hodnota Cf u motoru s cukr/KNO3 směsí bývá 1,5, zatímco teoretická by byla okolo 1,64. Ztráty jsou v důsledku dvojrozměrného toku.
B278: Charakteristická rychlost c* je odrazem účinnosti hoření, Isp je specifický impuls (v jednotkách N.s/kg =m/s)
B284: Poměry na kolmé rázové vlně (Rankine-Hugoniotovy rovnice):
B290: Orbitální mechanika
B291: Rychlost družice v bodech eliptické dráhy
B293: Kde M hmotnost Země 5,7 x 1024 kg, G gravitační konstanta 6,67×10-11 N.m2.kg-2
B294: a velikost velké poloosy elipsy (m), r vzdálenost satelitu od středu Země (m). Velká poloosa dráhy je aritmetický průměr z vzdáleností obou apsid od těžiště centrálního tělesa. M.G = 3,8019.1014 , odmocnina z M.G = 1,9498.107
B296: Kruhová rychlost | G296: úniková
B299: Oběžná doba eliptické dráhy: | G299: kde m =G(M1+M2) , a velká poloosa
B302: Specifická orbitální energie eliptické oběžné dráhy je záporná a rovnice pro zachování
B304: orbitální energie
B306: Pokud chceme vzdálit polohu jedné apsidy (perigeum, apogeum) od centrálního tělesa, musí družice zažehnout svůj motor v protilehlé apsidě a pozor – ve směru letu! Jinými slovy – satelit musí zrychlit. Pokud naopak chceme snížit polohu apsidy, musíme i tentokrát zapálit motor v protilehlé apsidě, tentokrát ale proti směru letu. Družice tedy zpomalí, což ovlivní polohu protilehlé apsidy. Přechod na vyšší kruhovou dráhu tedy vyžaduje dvě změny rychlosti. Z rozdílů rychlostí v původní a nové apsidě spočítáme potřebné Dv.
B307: Přechod na vyšší dráhu při změně sklonu oběžné dráhy. Místo aby vk2 = vea + Dv2, tak je dáno vektorově obecným trojúhelníkem: Dv22 = vea2+ Dv22-2.vea. Dv2.cos(a)
B308: kde vk2 kruhová rychlost na vyšší dráze, vea rychlost apoapsidě eliptické dráhy, Dv2 potřebná změna rychlosti, a úhel změny dráhy.
B310: Model rakety k simulaci
B311: Model tvoří soustava obyčejných diferenciálních rovnic, která se řeší numericky v čase
B312: y(1) | C312: odhořená lineární vzdálenost TPH (D) (m)
B313: y(2) | C313: hořící povrch Sh (m2)
B314: y(3) | C314: průtočné hmotové množství mP, G (kg/s)
B315: y(4) | C315: skutečná rychlost v (m/s) včetně vlivu gravitace a odporu vzduchu
B316: y(5) | C316: dosažená výška h (m)
B317: y(6) | C317: impuls I (N.s)
B318: y(7) | C318: dálka x (m)
B320: Počáteční podmínky: y(i) = 0 kromě y(2) = počáteční hořící povrch Sh0 = Povrch(element,0,1)
B321: Rovnice modelu:
B323: Am = a.exp(E.(t-tokol)).rP
F326: rovnovážný tlak ve spalovací komoře
B330: y1 | C330: odhořelá vrstva paliva | E330: y2 | F330: hořící povrch
D332: numerická derivace Povrch(element, y1) podle y1
B336: y3 | C336: vyhořelá hmota paliva | E336: y4 | F336: rychlost rakety | H336: y5 | I336: výška
F338: rP hustota TPH
B343: kde cx koef. odporu (0,2), v = y4 rychlost rakety, mcelk celková hmotnost rakety včetně TPH
E345: y6 | F345: impuls
B347: Po dohoření paliva, když Sh = 0 je výhodnější integrovat setrvačný let už jen jako dvě rovnice pro rychlost v a výšku h.
G349: s poč. podmínkami na konci chodu motoru
B351: Na konci výstupních integračních intervalů Dt se dopočítávají veličiny:
F353: tah (N) G = dy3/dτ
C355: a da odpovídající expanzi na okolní tlak pH. Také se dopočte expanzní tlak pa pro daný výstupní průměr trysky da čili Sa. a je úhel rozšíření trysky.
B357: V případě obecného, šikmého letu se integrují dvě složky rychlosti vx a vy a dvě vzdálenosti – délka a výška, tedy čtyři rovnice, místo dvou (celkem osm).
B359: v2 = vx2 + vy2
B363: s poč. podmínkami na konci chodu motoru; axy je okamžitý úhel dráhy
B365: Takovýto model má v aktivní dráze letu stále konstantní náměr (jako by byl řízen po přímce). Chceme-li zohlednit gravitací klesající náměr, je nutné integrovat v aktivním letu další diferenciální rovnici pro náměr a. Z důvodů integrační stability by se derivace měla počítat až pro celkovou ryclost > 30 m/s.
F367: kde v je ryclost
B370: Odkaz na kurs návrhu raket: https://www.youtube.com/watch?v=vQiIt-jX0BM&list=PL99EA5ECCC34949DB&index=1
B371: (anglicky Indian Institute of Technology Madras)
